{"text_format":"1","workbook":"xlsx","n_sheets":3,"sheets":["Reporting Info","Drop-Down Options","HUD Form 2516_Rev"],"not_rendered":{"charts":0,"images":0,"macros":0,"external_links":0,"defined_names":9,"comments":1,"pivot_tables":0},"unopened":[],"bounds":{"document_bytes":16777216,"sheet_cells":100000,"rows_first":2000,"rows_last":500,"rows_between":2000,"halvings":0,"cell_chars":16384,"cell_head_chars":4096},"cells_cut":0,"cells_raw":0,"read":"whole","date_system":"1900"}

{"sheet":"Reporting Info","index":0,"n_rows":264,"n_cols":30,"rows_kept":264,"cut":false,"hidden":false,"merged":[[212,10,212,13],[213,10,213,13],[214,10,214,13],[215,10,215,13],[216,10,216,13],[217,10,217,13],[218,10,218,13],[2,0,2,16],[148,3,148,6],[144,7,144,9],[144,10,144,13],[144,17,144,19],[110,15,110,18],[109,13,109,14],[110,13,110,14],[100,3,100,6],[108,15,108,18],[109,15,109,18],[146,10,146,13],[146,17,146,19],[150,10,150,13],[151,10,151,13],[152,10,152,13],[153,10,153,13],[211,10,211,13],[238,5,238,19],[237,9,237,19],[237,5,237,8],[236,5,236,19],[235,5,235,19],[238,22,238,29],[237,22,237,29],[236,22,236,29],[235,22,235,29],[126,8,126,13],[126,14,126,16],[126,20,126,22],[126,23,126,25],[126,26,126,27],[127,3,127,6],[127,8,127,13],[127,14,127,16],[127,20,127,22],[144,21,144,25],[145,7,145,9],[145,10,145,13],[145,17,145,19],[145,21,145,25],[146,7,146,9],[220,10,220,16],[221,10,221,16],[222,10,222,16],[219,10,219,17],[144,3,144,6],[145,3,145,6],[146,3,146,6],[147,3,147,6],[146,21,146,25],[147,7,147,9],[147,10,147,13],[147,17,147,19],[147,21,147,25],[148,7,148,9],[148,10,148,13],[148,17,148,19],[148,21,148,25],[188,24,188,26],[187,24,187,26],[190,24,190,26],[4,18,4,26],[139,7,139,9],[140,7,140,9],[141,7,141,9],[142,7,142,9],[143,7,143,9],[149,7,149,9],[151,21,151,25],[152,21,152,25],[153,21,153,25],[136,21,136,25],[136,10,136,13],[137,10,137,13],[138,10,138,13],[139,10,139,13],[140,10,140,13],[141,10,141,13],[142,10,142,13],[143,10,143,13],[149,10,149,13],[137,21,137,25],[138,21,138,25],[139,21,139,25],[140,21,140,25],[141,21,141,25],[142,21,142,25],[129,23,129,25],[130,23,130,25],[116,0,133,0],[78,15,78,18],[79,15,79,18],[80,15,80,18],[81,15,81,18],[82,15,82,18],[83,15,83,18],[84,15,84,18],[85,15,85,18],[86,15,86,18],[87,15,87,18],[88,15,88,18],[89,15,89,18],[90,15,90,18],[91,15,91,18],[92,15,92,18],[93,15,93,18],[94,15,94,18],[95,15,95,18],[96,15,96,18],[106,13,106,14],[107,13,107,14],[84,8,84,10],[85,8,85,10],[95,3,95,6],[96,3,96,6],[97,3,97,6],[98,3,98,6],[99,3,99,6],[131,23,131,25],[132,23,132,25],[121,14,121,16],[122,14,122,16],[128,14,128,16],[129,14,129,16],[130,14,130,16],[131,14,131,16],[132,14,132,16],[143,21,143,25],[149,21,149,25],[150,21,150,25],[108,13,108,14],[108,20,108,21],[109,20,109,21],[110,20,110,21],[120,8,120,13],[121,8,121,13],[122,8,122,13],[128,8,128,13],[108,22,108,24],[109,22,109,24],[110,22,110,24],[109,8,109,10],[110,8,110,10],[123,8,123,13],[124,8,124,13],[129,26,129,27],[130,26,130,27],[131,26,131,27],[132,26,132,27],[115,23,115,25],[116,23,116,25],[117,23,117,25],[118,23,118,25],[119,23,119,25],[120,23,120,25],[136,14,136,16],[136,17,136,19],[137,17,137,19],[138,17,138,19],[139,17,139,19],[140,17,140,19],[141,17,141,19],[119,20,119,22],[120,20,120,22],[121,20,121,22],[115,14,115,16],[119,14,119,16],[120,14,120,16],[117,14,117,16],[118,14,118,16],[118,20,118,22],[116,14,116,16],[123,14,123,16],[123,20,123,22],[123,23,123,25],[124,14,124,16],[124,20,124,22],[124,26,124,27],[107,22,107,24],[122,20,122,22],[107,25,107,26],[124,23,124,25],[125,8,125,13],[125,14,125,16],[125,20,125,22],[125,23,125,25],[128,26,128,27],[121,23,121,25],[122,23,122,25],[128,23,128,25],[115,26,115,27],[116,26,116,27],[117,26,117,27],[118,26,118,27],[119,26,119,27],[108,25,108,26],[109,25,109,26],[110,25,110,26],[125,26,125,27],[127,23,127,25],[127,26,127,27],[128,20,128,22],[120,26,120,27],[121,26,121,27],[122,26,122,27],[78,8,78,10],[97,25,97,26],[98,22,98,24],[115,20,115,22],[116,20,116,22],[101,20,101,21],[102,20,102,21],[103,20,103,21],[104,20,104,21],[105,20,105,21],[106,20,106,21],[107,20,107,21],[102,22,102,24],[103,22,103,24],[104,22,104,24],[105,22,105,24],[123,26,123,27],[86,20,86,21],[87,20,87,21],[88,20,88,21],[89,20,89,21],[90,20,90,21],[106,25,106,26],[92,25,92,26],[93,25,93,26],[94,25,94,26],[96,22,96,24],[65,22,65,25],[71,22,71,25],[72,22,72,25],[78,20,78,21],[98,25,98,26],[101,8,101,10],[102,8,102,10],[103,8,103,10],[104,8,104,10],[105,8,105,10],[106,8,106,10],[107,8,107,10],[92,8,92,10],[93,8,93,10],[94,8,94,10],[95,8,95,10],[96,8,96,10],[97,8,97,10],[98,8,98,10],[99,8,99,10],[100,8,100,10],[93,22,93,24],[94,22,94,24],[105,25,105,26],[86,25,86,26],[81,8,81,10],[82,8,82,10],[72,17,72,19],[73,17,73,19],[74,17,74,19],[64,20,64,21],[65,20,65,21],[66,20,66,21],[67,20,67,21],[68,20,68,21],[69,20,69,21],[73,15,73,16],[74,15,74,16],[75,15,75,16],[65,11,65,14],[46,23,46,25],[45,26,45,27],[46,26,46,27],[47,26,47,27],[48,26,48,27],[49,26,49,27],[45,23,45,25],[62,22,62,25],[63,22,63,25],[64,22,64,25],[73,20,73,21],[74,20,74,21],[68,11,68,14],[69,11,69,14],[63,17,63,19],[73,22,73,25],[74,22,74,25],[75,22,75,25],[55,20,55,21],[56,20,56,21],[57,20,57,21],[58,20,58,21],[59,20,59,21],[60,20,60,21],[61,20,61,21],[62,20,62,21],[63,20,63,21],[79,8,79,10],[80,8,80,10],[75,17,75,19],[79,20,79,21],[80,20,80,21],[71,11,71,14],[64,8,64,10],[65,8,65,10],[66,8,66,10],[67,8,67,10],[68,8,68,10],[69,8,69,10],[70,8,70,10],[71,8,71,10],[72,8,72,10],[70,11,70,14],[70,20,70,21],[28,20,28,22],[29,20,29,22],[30,20,30,22],[31,20,31,22],[32,20,32,22],[33,20,33,22],[34,20,34,22],[35,20,35,22],[46,14,46,16],[38,14,38,16],[39,14,39,16],[40,14,40,16],[41,14,41,16],[42,14,42,16],[27,20,27,22],[27,23,27,25],[28,23,28,25],[29,23,29,25],[30,23,30,25],[31,23,31,25],[32,23,32,25],[33,23,33,25],[34,23,34,25],[35,23,35,25],[44,23,44,25],[43,23,43,25],[43,20,43,22],[29,26,29,27],[30,26,30,27],[31,26,31,27],[32,26,32,27],[33,26,33,27],[34,26,34,27],[35,26,35,27],[36,26,36,27],[37,26,37,27],[38,26,38,27],[39,26,39,27],[43,14,43,16],[44,14,44,16],[45,14,45,16],[40,26,40,27],[36,23,36,25],[37,23,37,25],[38,23,38,25],[39,23,39,25],[40,23,40,25],[41,23,41,25],[42,23,42,25],[41,26,41,27],[42,26,42,27],[43,26,43,27],[44,26,44,27],[38,20,38,22],[39,20,39,22],[40,20,40,22],[41,20,41,22],[42,20,42,22],[4,27,4,29],[6,26,6,29],[8,26,8,29],[14,26,15,29],[17,26,18,29],[20,26,21,29],[23,26,24,29],[5,12,6,16],[261,1,262,2],[239,20,248,20],[249,20,259,20],[159,16,161,18],[162,16,162,18],[163,16,163,18],[164,16,164,18],[165,16,165,18],[166,16,166,18],[167,16,167,18],[168,16,168,18],[169,16,169,18],[170,16,170,18],[171,16,171,18],[172,16,172,18],[173,16,173,18],[47,23,47,25],[27,26,27,27],[28,26,28,27],[247,24,247,29],[48,23,48,25],[49,23,49,25],[248,24,248,29],[258,24,258,29],[27,14,27,16],[28,14,28,16],[259,24,259,29],[206,29,212,29],[206,23,229,23],[220,24,220,26],[224,24,224,26],[225,24,225,26],[226,24,226,26],[227,24,227,26],[228,24,228,26],[229,24,229,26],[221,24,221,26],[222,24,222,26],[223,24,223,26],[210,20,210,21],[210,17,210,19],[206,24,212,26],[206,27,212,27],[206,28,212,28],[214,24,214,26],[215,24,215,26],[216,24,216,26],[217,24,217,26],[218,24,218,26],[219,24,219,26],[191,24,191,26],[192,24,192,26],[193,24,193,26],[194,24,194,26],[195,24,195,26],[196,24,196,26],[197,24,197,26],[198,24,198,26],[199,24,199,26],[200,24,200,26],[201,24,201,26],[202,24,202,26],[205,24,205,26],[206,20,206,21],[207,20,207,21],[203,17,203,19],[204,17,204,19],[198,17,198,19],[204,20,204,21],[211,20,211,21],[212,20,212,21],[213,20,213,21],[214,20,214,21],[215,20,215,21],[217,20,217,21],[218,20,218,21],[219,20,219,21],[214,17,214,19],[215,17,215,19],[217,17,217,19],[218,17,218,19],[205,17,205,19],[206,17,206,19],[207,17,207,19],[208,17,208,19],[209,17,209,19],[211,17,211,19],[212,17,212,19],[213,17,213,19],[208,20,208,21],[209,20,209,21],[205,20,205,21],[187,20,187,21],[188,20,188,21],[191,20,191,21],[192,20,192,21],[193,20,193,21],[194,20,194,21],[195,20,195,21],[196,20,196,21],[197,20,197,21],[198,20,198,21],[199,20,199,21],[200,20,200,21],[201,20,201,21],[202,20,202,21],[203,20,203,21],[189,20,189,21],[190,20,190,21],[211,14,211,16],[214,14,214,16],[215,14,215,16],[217,14,217,16],[218,14,218,16],[212,14,212,16],[213,14,213,16],[196,14,196,16],[197,14,197,16],[187,17,187,19],[188,17,188,19],[189,17,189,19],[190,17,190,19],[191,17,191,19],[192,17,192,19],[193,17,193,19],[194,17,194,19],[195,17,195,19],[199,17,199,19],[200,17,200,19],[196,17,196,19],[197,17,197,19],[201,17,201,19],[202,17,202,19],[206,14,206,16],[207,14,207,16],[208,14,208,16],[209,14,209,16],[199,14,199,16],[198,3,198,6],[190,14,190,16],[191,14,191,16],[192,14,192,16],[193,14,193,16],[194,14,194,16],[195,14,195,16],[198,14,198,16],[210,14,210,16],[210,10,210,13],[189,10,189,13],[190,10,190,13],[191,10,191,13],[192,10,192,13],[193,10,193,13],[194,10,194,13],[195,10,195,13],[196,10,196,13],[197,10,197,13],[198,10,198,13],[199,10,199,13],[200,10,200,13],[201,10,201,13],[202,10,202,13],[203,10,203,13],[204,10,204,13],[205,14,205,16],[200,14,200,16],[201,14,201,16],[202,14,202,16],[203,14,203,16],[204,14,204,16],[200,3,200,6],[201,3,201,6],[202,3,202,6],[203,3,203,6],[204,3,204,6],[205,3,205,6],[206,3,206,6],[207,3,207,6],[208,3,208,6],[209,3,209,6],[162,23,162,26],[162,27,162,28],[163,23,163,26],[163,27,163,28],[164,23,164,26],[164,27,164,28],[165,23,165,26],[165,27,165,28],[166,23,166,26],[166,27,166,28],[183,20,183,21],[181,14,181,16],[182,14,182,16],[183,14,183,16],[181,17,181,19],[182,17,182,19],[183,17,183,19],[179,14,180,16],[178,14,178,16],[179,17,180,19],[165,11,165,15],[166,11,166,15],[167,11,167,15],[168,11,168,15],[169,11,169,15],[170,11,170,15],[171,11,171,15],[172,11,172,15],[167,23,167,26],[167,27,167,28],[168,23,168,26],[168,27,168,28],[188,0,208,0],[187,10,187,13],[188,10,188,13],[205,10,205,13],[206,10,206,13],[207,10,207,13],[208,10,208,13],[169,23,169,26],[169,27,169,28],[170,23,170,26],[170,27,170,28],[171,23,171,26],[171,27,171,28],[168,19,168,22],[169,19,169,22],[170,19,170,22],[171,19,171,22],[172,19,172,22],[172,1,172,2],[181,22,181,25],[182,22,182,25],[183,22,183,25],[209,10,209,13],[55,8,55,10],[56,8,56,10],[57,8,57,10],[58,8,58,10],[59,8,59,10],[60,8,60,10],[61,8,61,10],[62,8,62,10],[199,3,199,6],[181,11,181,13],[182,11,182,13],[183,11,183,13],[178,3,178,6],[179,3,180,6],[179,7,180,7],[179,11,180,13],[178,11,178,13],[138,7,138,9],[92,3,92,6],[152,3,152,6],[132,8,132,13],[193,3,193,6],[194,3,194,6],[197,3,197,6],[137,7,137,9],[72,11,72,14],[73,11,73,14],[75,8,75,10],[73,8,73,10],[74,8,74,10],[78,11,78,14],[158,27,158,28],[158,23,158,26],[158,16,158,17],[158,11,158,15],[159,29,161,29],[159,27,161,28],[159,23,161,26],[159,11,161,15],[158,1,160,7],[187,3,187,6],[188,3,188,6],[189,3,189,6],[190,3,190,6],[191,3,191,6],[192,3,192,6],[180,1,180,2],[161,1,161,2],[171,3,171,6],[172,3,172,6],[178,1,178,2],[164,3,164,6],[165,3,165,6],[166,3,166,6],[167,3,167,6],[168,3,168,6],[169,3,169,6],[170,3,170,6],[179,1,179,2],[181,1,181,2],[182,1,182,2],[164,11,164,15],[183,3,183,6],[29,0,50,0],[81,0,111,0],[142,17,142,19],[143,17,143,19],[149,17,149,19],[150,17,150,19],[151,17,151,19],[152,17,152,19],[153,17,153,19],[162,3,162,6],[163,3,163,6],[161,3,161,6],[162,11,162,15],[163,11,163,15],[150,7,150,9],[151,7,151,9],[152,7,152,9],[153,7,153,9],[90,8,90,10],[91,8,91,10],[108,8,108,10],[55,0,75,0],[29,14,29,16],[30,14,30,16],[31,14,31,16],[32,14,32,16],[33,14,33,16],[34,14,34,16],[35,14,35,16],[36,14,36,16],[37,14,37,16],[136,7,136,9],[130,20,130,22],[131,20,131,22],[116,3,116,6],[117,3,117,6],[118,3,118,6],[119,3,119,6],[120,3,120,6],[121,3,121,6],[122,3,122,6],[128,3,128,6],[117,8,117,13],[118,8,118,13],[119,8,119,13],[97,22,97,24],[115,8,115,13],[116,8,116,13],[129,8,129,13],[130,8,130,13],[131,8,131,13],[106,22,106,24],[100,22,100,24],[101,22,101,24],[86,8,86,10],[87,8,87,10],[88,8,88,10],[89,8,89,10],[100,20,100,21],[95,25,95,26],[96,25,96,26],[115,17,115,19],[83,8,83,10],[101,15,101,18],[103,13,103,14],[104,13,104,14],[105,13,105,14],[117,20,117,22],[83,22,83,24],[97,20,97,21],[98,20,98,21],[99,25,99,26],[100,25,100,26],[101,25,101,26],[102,25,102,26],[103,25,103,26],[104,25,104,26],[83,25,83,26],[102,15,102,18],[103,15,103,18],[104,15,104,18],[105,15,105,18],[106,15,106,18],[107,15,107,18],[57,22,57,25],[58,22,58,25],[59,22,59,25],[93,20,93,21],[94,20,94,21],[95,20,95,21],[84,22,84,24],[85,22,85,24],[86,22,86,24],[87,22,87,24],[88,22,88,24],[89,22,89,24],[90,22,90,24],[91,22,91,24],[92,22,92,24],[96,20,96,21],[99,22,99,24],[95,22,95,24],[91,20,91,21],[92,20,92,21],[75,20,75,21],[71,20,71,21],[72,20,72,21],[88,25,88,26],[89,25,89,26],[90,25,90,26],[91,25,91,26],[84,25,84,26],[85,25,85,26],[84,20,84,21],[85,20,85,21],[82,20,82,21],[74,11,74,14],[75,11,75,14],[67,15,67,16],[68,15,68,16],[69,15,69,16],[70,15,70,16],[71,15,71,16],[72,15,72,16],[52,22,52,26],[53,22,53,26],[54,22,54,25],[66,22,66,25],[67,22,67,25],[68,22,68,25],[81,20,81,21],[89,13,89,14],[63,8,63,10],[52,7,52,10],[53,7,53,10],[54,8,54,10],[52,17,52,21],[53,17,53,21],[54,20,54,21],[78,25,78,26],[82,22,82,24],[66,17,66,19],[67,17,67,19],[68,17,68,19],[70,17,70,19],[71,17,71,19],[78,22,78,24],[79,22,79,24],[79,25,79,26],[80,25,80,26],[81,25,81,26],[82,25,82,26],[90,13,90,14],[91,13,91,14],[92,13,92,14],[93,13,93,14],[94,13,94,14],[95,13,95,14],[96,13,96,14],[79,13,79,14],[80,13,80,14],[81,13,81,14],[82,13,82,14],[83,13,83,14],[84,13,84,14],[85,13,85,14],[86,13,86,14],[87,13,87,14],[80,22,80,24],[81,22,81,24],[83,20,83,21],[87,25,87,26],[61,11,61,14],[62,11,62,14],[52,11,52,16],[63,11,63,14],[64,11,64,14],[56,17,56,19],[54,17,54,19],[55,17,55,19],[49,14,49,16],[70,22,70,25],[8,20,8,25],[14,20,15,25],[17,20,18,25],[20,20,21,25],[23,20,24,25],[56,15,56,16],[57,15,57,16],[58,15,58,16],[59,15,59,16],[60,15,60,16],[61,15,61,16],[62,15,62,16],[63,15,63,16],[64,15,64,16],[65,15,65,16],[66,15,66,16],[60,22,60,25],[61,22,61,25],[64,17,64,19],[65,17,65,19],[55,22,55,25],[56,22,56,25],[66,11,66,14],[67,11,67,14],[45,20,45,22],[46,20,46,22],[71,3,71,6],[72,3,72,6],[73,3,73,6],[74,3,74,6],[75,3,75,6],[36,3,36,6],[37,3,37,6],[38,3,38,6],[39,3,39,6],[68,3,68,6],[69,3,69,6],[70,3,70,6],[40,3,40,6],[41,3,41,6],[42,3,42,6],[43,3,43,6],[44,3,44,6],[59,3,59,6],[60,3,60,6],[61,3,61,6],[62,3,62,6],[63,3,63,6],[49,20,49,22],[56,11,56,14],[57,11,57,14],[58,11,58,14],[59,11,59,14],[60,11,60,14],[19,1,20,2],[17,1,18,2],[17,3,18,6],[19,3,20,6],[47,20,47,22],[48,20,48,22],[64,3,64,6],[65,3,65,6],[66,3,66,6],[67,3,67,6],[44,20,44,22],[69,17,69,19],[57,17,57,19],[58,17,58,19],[59,17,59,19],[60,17,60,19],[61,17,61,19],[62,17,62,19],[44,8,44,13],[45,8,45,13],[46,8,46,13],[47,8,47,13],[48,8,48,13],[49,8,49,13],[47,14,47,16],[48,14,48,16],[27,8,27,13],[28,8,28,13],[29,8,29,13],[30,8,30,13],[31,8,31,13],[32,8,32,13],[6,8,6,10],[7,6,9,7],[10,6,12,7],[28,3,28,6],[29,3,29,6],[30,3,30,6],[31,3,31,6],[32,3,32,6],[33,3,33,6],[34,3,34,6],[45,3,45,6],[46,3,46,6],[47,3,47,6],[48,3,48,6],[49,3,49,6],[50,3,50,6],[35,3,35,6],[33,8,33,13],[34,8,34,13],[35,8,35,13],[36,8,36,13],[37,8,37,13],[38,8,38,13],[39,8,39,13],[40,8,40,13],[41,8,41,13],[42,8,42,13],[43,8,43,13],[11,11,11,29],[6,20,6,25],[36,20,36,22],[37,20,37,22],[0,1,0,28],[27,3,27,6],[27,17,27,19],[133,1,133,2],[154,1,154,2],[4,2,4,6],[153,3,153,6],[154,3,154,6],[129,3,129,6],[130,3,130,6],[131,3,131,6],[132,3,132,6]],"merged_total":1148,"flags":["merged_cut"]}
[null,"SEMI-ANNUAL CDBG DATA REPORT (MBE/WBE, Labor Standards Enforcement, and Section 3) (9-C)"]
[]
["Click on the red triagles in the upper right corner of cells throughout the electronic version of this form to view instructional/guidance notes."]
[]
["Grantee/UGLG Name:",null,"(Grantee's Name)",null,null,null,null,"Grant AWARDED Before or On/After 11/30/2020?",null,null,null,null,null,null,null,null,"On or After",null,"DEHCR Grant Agreement/Contract Number:",null,null,null,null,null,null,null,null,"(Grant Agreement #)"]
[]
[null,"Reporting Period (Choose ONE):",null,null,"X",null,null,null,"Year",null,null,null,null,null,null,null,null,null,null,null,"Approver's Name:"]
[null,null,null,null,null,null,"October 1 - March 31"]
[null,null,null,null,null,null,null,null,null,null,null,null,null,null,null,null,null,null,null,null,"Approver's Title: "]
[]
[null,null,null,null,null,null,"April 1 - September 30"]
[null,null,null,null,null,null,null,null,null,null,null,"If the \"Approver\" is not the one submitting this Report to DEHCR, then they MUST BE CARBON-COPIED on the email submission."]
[]
[]
[null,"PART 1.  CONSTRUCTION PERIOD",null,null,null,null,null,null,null,null,null,null,null,null,null,null,null,null,null,null,"Preparer's Name:"]
[null,null,null,null,null,null,null,null,"Trade Codes:",null,null,null,null,null,"Racial / Ethnic Codes:"]
[null,null,null,null,null,null,null,null,"1 = New Construction",null,null,null,null,null,"1 = White Americans"]
[null,"1(a).  Construction Start Date:",null,null,null,null,null,null,"2 = Substantial Rehab",null,null,null,null,null,"2 = Black Americans",null,null,null,null,null,"Preparer's Title:"]
[null,null,null,null,null,null,null,null,"3 = Repair(s)",null,null,null,null,null,"3 = Native Americans"]
[null,"1(b).  Construction End Date: ",null,null,null,null,null,null,"4 = Service",null,null,null,null,null,"4 = Hispanic Americans"]
[null,null,null,null,null,null,null,null,"5 = Project Management",null,null,null,null,null,"5 = Asian / Pacific Americans",null,null,null,null,null,"Preparer's Phone No.:"]
[null,null,null,null,null,null,null,null,"6 = Professional Services",null,null,null,null,null,"6 = Hasidic Jews"]
[null,"PART 2.  CONSTRUCTION CONTRACTS AWARDED",null,null,null,null,null,null,"7 = Tenant Services"]
[null,null,null,null,null,null,null,null,"8 = Education / Training",null,null,null,null,null,null,null,null,null,null,null,"Preparer's Email:"]
[null,null,null,null,null,null,null,null,"9 = Architectural / Engineering Appraisal"]
[null,null,null,null,null,null,null,null,"0 = Other"]
[]
[null,null,"2(a)","2(b)",null,null,null,"2(c) ","2(d)",null,null,null,null,null,"2(e) ",null,null,"2(f)",null,null,"2(g)",null,null,"2(h)",null,null,"2(i)",null,"2(j)","2(k)"]
[null,null,"Construction Prime Contractor Name","Total Awarded Contract Amount (CDBG Project Activities Only)",null,null,null,"Prime Contract Amt. MINUS Associated Subcontractor Amt(s)","Street Address",null,null,null,null,null,"City",null,null,"State","/","ZIP","Prime's FEIN #                ( XX - XXXXXXX )",null,null,"Trade Code                           (See above.)",null,null,"Prime's Race/ Ethnicity                       (See above.)",null,"Women Owned Business? (Yes or No)","Section 3 Business? (Yes or No)"]
["***** Information for   CONSTRUCTION PRIME   Contractors *****","Example","Builders-R-Us Inc.",2500000,null,null,null,400000,"123 Main Street",null,null,null,null,null,"Centerville",null,null,"WI","/",58724,"88 - 5423726",null,null,2,null,null,3,null,"Yes","Yes"]
[null,"Prime Contractor #1",null,0,null,null,null,0,null,null,null,null,null,null,null,null,null,null,"/",null,null,null,null,"Not Answered",null,null,"Not Answered",null,"Not Answered","Not Answered"]
[null,"Prime Contractor #2",null,0,null,null,null,0,null,null,null,null,null,null,null,null,null,null,"/",null,null,null,null,"Not Answered",null,null,"Not Answered",null,"Not Answered","Not Answered"]
[null,"Prime Contractor #3",null,0,null,null,null,0,null,null,null,null,null,null,null,null,null,null,"/",null,null,null,null,"Not Answered",null,null,"Not Answered",null,"Not Answered","Not Answered"]
[null,"Prime Contractor #4",null,0,null,null,null,0,null,null,null,null,null,null,null,null,null,null,"/",null,null,null,null,"Not Answered",null,null,"Not Answered",null,"Not Answered","Not Answered"]
[null,"Prime Contractor #5",null,0,null,null,null,0,null,null,null,null,null,null,null,null,null,null,"/",null,null,null,null,"Not Answered",null,null,"Not Answered",null,"Not Answered","Not Answered"]
[null,"Prime Contractor #6",null,0,null,null,null,0,null,null,null,null,null,null,null,null,null,null,"/",null,null,null,null,"Not Answered",null,null,"Not Answered",null,"Not Answered","Not Answered"]
[null,"Prime Contractor #7",null,0,null,null,null,0,null,null,null,null,null,null,null,null,null,null,"/",null,null,null,null,"Not Answered",null,null,"Not Answered",null,"Not Answered","Not Answered"]
[null,"Prime Contractor #8",null,0,null,null,null,0,null,null,null,null,null,null,null,null,null,null,"/",null,null,null,null,"Not Answered",null,null,"Not Answered",null,"Not Answered","Not Answered"]
[null,"Prime Contractor #9",null,0,null,null,null,0,null,null,null,null,null,null,null,null,null,null,"/",null,null,null,null,"Not Answered",null,null,"Not Answered",null,"Not Answered","Not Answered"]
[null,"Prime Contractor #10",null,0,null,null,null,0,null,null,null,null,null,null,null,null,null,null,"/",null,null,null,null,"Not Answered",null,null,"Not Answered",null,"Not Answered","Not Answered"]
[null,"Prime Contractor #11",null,0,null,null,null,0,null,null,null,null,null,null,null,null,null,null,"/",null,null,null,null,"Not Answered",null,null,"Not Answered",null,"Not Answered","Not Answered"]
[null,"Prime Contractor #12",null,0,null,null,null,0,null,null,null,null,null,null,null,null,null,null,"/",null,null,null,null,"Not Answered",null,null,"Not Answered",null,"Not Answered","Not Answered"]
[null,"Prime Contractor #13",null,0,null,null,null,0,null,null,null,null,null,null,null,null,null,null,"/",null,null,null,null,"Not Answered",null,null,"Not Answered",null,"Not Answered","Not Answered"]
[null,"Prime Contractor #14",null,0,null,null,null,0,null,null,null,null,null,null,null,null,null,null,"/",null,null,null,null,"Not Answered",null,null,"Not Answered",null,"Not Answered","Not Answered"]
[null,"Prime Contractor #15",null,0,null,null,null,0,null,null,null,null,null,null,null,null,null,null,"/",null,null,null,null,"Not Answered",null,null,"Not Answered",null,"Not Answered","Not Answered"]
[null,"Prime Contractor #16",null,0,null,null,null,0,null,null,null,null,null,null,null,null,null,null,"/",null,null,null,null,"Not Answered",null,null,"Not Answered",null,"Not Answered","Not Answered"]
[null,"Prime Contractor #17",null,0,null,null,null,0,null,null,null,null,null,null,null,null,null,null,"/",null,null,null,null,"Not Answered",null,null,"Not Answered",null,"Not Answered","Not Answered"]
[null,"Prime Contractor #18",null,0,null,null,null,0,null,null,null,null,null,null,null,null,null,null,"/",null,null,null,null,"Not Answered",null,null,"Not Answered",null,"Not Answered","Not Answered"]
[null,"Prime Contractor #19",null,0,null,null,null,0,null,null,null,null,null,null,null,null,null,null,"/",null,null,null,null,"Not Answered",null,null,"Not Answered",null,"Not Answered","Not Answered"]
[null,"Prime Contractor #20",null,0,null,null,null,0,null,null,null,null,null,null,null,null,null,null,"/",null,null,null,null,"Not Answered",null,null,"Not Answered",null,"Not Answered","Not Answered"]
[null,"Total Construction Prime Contract Amounts:",null,{"$f":"SUM(D31:D50)","v":0},null,null,null,{"$f":"SUM(H31:H50)","v":0}]
[]
[null,null,"2(a)","2(l)",null,null,null,"2(m)-1 ",null,null,null,"2(m)-2",null,null,null,null,null,"2(m)-3",null,null,null,null,"2(m)-4",null,null,null,null,"2(n)-1","2(n)-2","2(o)"]
[null,null,"Construction Prime Contractor Name","Contract Award Date                             (mm/dd/yyyy)",null,null,null,"Wage Decision #1",null,null,null,"Wage Decision #2",null,null,null,null,null,"Wage Decision #3",null,null,null,null,"Wage Decision #4",null,null,null,null,"Bid Opening Date","Wage Decision      Lock-In Date:  "," Construction Start Date"]
[null,null,null,null,null,null,null,"(WI##00##   Mod. ##)","(mm/dd/yyyy)",null,null,"(WI##00##   Mod. ##)",null,null,null,"(mm/dd/yyyy)",null,"(WI##00##   Mod. ##)",null,null,"(mm/dd/yyyy)",null,"(WI##00##   Mod. ##)",null,null,null,"(mm/dd/yyyy)","(mm/dd/yyyy)","(mm/dd/yyyy)","(mm/dd/yyyy)"]
["***** Information for   CONSTRUCTION PRIME   Contractors *****","Example",{"$f":"C30","v":"Builders-R-Us Inc."},"2019-08-27",null,null,null,"WI 20190012, Mod. 10","2019-07-06",null,null,"WI 20190015, Mod. 10",null,null,null,"2019-07-20",null,"WI 20190010, Mod. 10",null,null,"7/13/20219",null,"WI 20190008, Mod. 10",null,null,null,"2019-07-13","2019-08-07",{"$f":"IF((D56-AB56)>90,D56,AB56)","v":"2019-08-07"},"2029-10-07"]
[null,"Prime Contractor #1",{"$f":"C31","v":0},null,null,null,null,null,null,null,null,null,null,null,null,null,null,null,null,null,null,null,null,null,null,null,null,null,{"$f":"IF((D57-AB57)>90,D57,AB57)","v":"00:00:00"}]
[null,"Prime Contractor #2",0,null,null,null,null,null,null,null,null,null,null,null,null,null,null,null,null,null,null,null,null,null,null,null,null,null,{"$f":"IF((D58-AB58)>90,D58,AB58)","v":"00:00:00"}]
[null,"Prime Contractor #3",0,null,null,null,null,null,null,null,null,null,null,null,null,null,null,null,null,null,null,null,null,null,null,null,null,null,"00:00:00"]
[null,"Prime Contractor #4",0,null,null,null,null,null,null,null,null,null,null,null,null,null,null,null,null,null,null,null,null,null,null,null,null,null,"00:00:00"]
[null,"Prime Contractor #5",0,null,null,null,null,null,null,null,null,null,null,null,null,null,null,null,null,null,null,null,null,null,null,null,null,null,"00:00:00"]
[null,"Prime Contractor #6",0,null,null,null,null,null,null,null,null,null,null,null,null,null,null,null,null,null,null,null,null,null,null,null,null,null,"00:00:00"]
[null,"Prime Contractor #7",0,null,null,null,null,null,null,null,null,null,null,null,null,null,null,null,null,null,null,null,null,null,null,null,null,null,"00:00:00"]
[null,"Prime Contractor #8",0,null,null,null,null,null,null,null,null,null,null,null,null,null,null,null,null,null,null,null,null,null,null,null,null,null,"00:00:00"]
[null,"Prime Contractor #9",0,null,null,null,null,null,null,null,null,null,null,null,null,null,null,null,null,null,null,null,null,null,null,null,null,null,"00:00:00"]
[null,"Prime Contractor #10",0,null,null,null,null,null,null,null,null,null,null,null,null,null,null,null,null,null,null,null,null,null,null,null,null,null,"00:00:00"]
[null,"Prime Contractor #11",0,null,null,null,null,null,null,null,null,null,null,null,null,null,null,null,null,null,null,null,null,null,null,null,null,null,"00:00:00"]
[null,"Prime Contractor #12",0,null,null,null,null,null,null,null,null,null,null,null,null,null,null,null,null,null,null,null,null,null,null,null,null,null,"00:00:00"]
[null,"Prime Contractor #13",0,null,null,null,null,null,null,null,null,null,null,null,null,null,null,null,null,null,null,null,null,null,null,null,null,null,"00:00:00"]
[null,"Prime Contractor #14",0,null,null,null,null,null,null,null,null,null,null,null,null,null,null,null,null,null,null,null,null,null,null,null,null,null,"00:00:00"]
[null,"Prime Contractor #15",0,null,null,null,null,null,null,null,null,null,null,null,null,null,null,null,null,null,null,null,null,null,null,null,null,null,"00:00:00"]
[null,"Prime Contractor #16",0,null,null,null,null,null,null,null,null,null,null,null,null,null,null,null,null,null,null,null,null,null,null,null,null,null,"00:00:00"]
[null,"Prime Contractor #17",0,null,null,null,null,null,null,null,null,null,null,null,null,null,null,null,null,null,null,null,null,null,null,null,null,null,"00:00:00"]
[null,"Prime Contractor #18",0,null,null,null,null,null,null,null,null,null,null,null,null,null,null,null,null,null,null,null,null,null,null,null,null,null,"00:00:00"]
[null,"Prime Contractor #19",0,null,null,null,null,null,null,null,null,null,null,null,null,null,null,null,null,null,null,null,null,null,null,null,null,null,"00:00:00"]
[null,"Prime Contractor #20",0,null,null,null,null,null,null,null,null,null,null,null,null,null,null,null,null,null,null,null,null,null,null,null,null,null,"00:00:00"]
[]
[]
[null,null,"2(p)","2(q)",null,null,null,"2(r) ","2(s)",null,null,"2(t) ",null,null,null,"2(u)",null,null,null,"2(k)","2(v)",null,"2(w)",null,null,"2(x)",null,"2(y)","2(z)"]
[null,null,"Construction Subcontractor Name","Subcontract Amount                                      (CDBG Project Activities Only)",null,null,null,"Street Address","City",null,null,"State","/","ZIP",null,"Prime Contractor             FEIN #                                              ( XX - XXXXXXX )",null,null,null,"Prime is Sec3?","Subcontr.             FEIN #                (XX - XXXXXXX)",null,"Subcontract. Trade Code (See above.)",null,null,"Subcontract. Business' Race/Ethnicity                          (See above.)",null,"Women Owned Business? (Yes or No)","Section 3 Business?   (Yes or No)"]
[null,"Example","Redi-Rhodes Asphalt",45000,null,null,null,"201 Terrace Avenue","Centerville",null,null,"WI","/",58724,null,"98 - 5560123",null,null,null,"Yes","34 - 2890311",null,4,null,null,2,null,"Yes","Yes"]
["***** Information for   CONSTRUCTION SUBCONTRACTORS     *****","Subcontractor #1",null,0,null,null,null,null,null,null,null,null,"/",null,null,null,null,null,null,"Not Answered",null,null,"Not Answered",null,null,"Not Answered",null,"Not Answered","Not Answered"]
[null,"Subcontractor #2",null,0,null,null,null,null,null,null,null,null,"/",null,null,null,null,null,null,"Not Answered",null,null,"Not Answered",null,null,"Not Answered",null,"Not Answered","Not Answered"]
[null,"Subcontractor #3",null,0,null,null,null,null,null,null,null,null,"/",null,null,null,null,null,null,"Not Answered",null,null,"Not Answered",null,null,"Not Answered",null,"Not Answered","Not Answered"]
[null,"Subcontractor #4",null,0,null,null,null,null,null,null,null,null,"/",null,null,null,null,null,null,"Not Answered",null,null,"Not Answered",null,null,"Not Answered",null,"Not Answered","Not Answered"]
[null,"Subcontractor #5",null,0,null,null,null,null,null,null,null,null,"/",null,null,null,null,null,null,"Not Answered",null,null,"Not Answered",null,null,"Not Answered",null,"Not Answered","Not Answered"]
[null,"Subcontractor #6",null,0,null,null,null,null,null,null,null,null,"/",null,null,null,null,null,null,"Not Answered",null,null,"Not Answered",null,null,"Not Answered",null,"Not Answered","Not Answered"]
[null,"Subcontractor #7",null,0,null,null,null,null,null,null,null,null,"/",null,null,null,null,null,null,"Not Answered",null,null,"Not Answered",null,null,"Not Answered",null,"Not Answered","Not Answered"]
[null,"Subcontractor #8",null,0,null,null,null,null,null,null,null,null,"/",null,null,null,null,null,null,"Not Answered",null,null,"Not Answered",null,null,"Not Answered",null,"Not Answered","Not Answered"]
[null,"Subcontractor #9",null,0,null,null,null,null,null,null,null,null,"/",null,null,null,null,null,null,"Not Answered",null,null,"Not Answered",null,null,"Not Answered",null,"Not Answered","Not Answered"]
[null,"Subcontractor #10",null,0,null,null,null,null,null,null,null,null,"/",null,null,null,null,null,null,"Not Answered",null,null,"Not Answered",null,null,"Not Answered",null,"Not Answered","Not Answered"]
[null,"Subcontractor #11",null,0,null,null,null,null,null,null,null,null,"/",null,null,null,null,null,null,"Not Answered",null,null,"Not Answered",null,null,"Not Answered",null,"Not Answered","Not Answered"]
[null,"Subcontractor #12",null,0,null,null,null,null,null,null,null,null,"/",null,null,null,null,null,null,"Not Answered",null,null,"Not Answered",null,null,"Not Answered",null,"Not Answered","Not Answered"]
[null,"Subcontractor #13",null,0,null,null,null,null,null,null,null,null,"/",null,null,null,null,null,null,"Not Answered",null,null,"Not Answered",null,null,"Not Answered",null,"Not Answered","Not Answered"]
[null,"Subcontractor #14",null,0,null,null,null,null,null,null,null,null,"/",null,null,null,null,null,null,"Not Answered",null,null,"Not Answered",null,null,"Not Answered",null,"Not Answered","Not Answered"]
[null,"Subcontractor #15",null,0,null,null,null,null,null,null,null,null,"/",null,null,null,null,null,null,"Not Answered",null,null,"Not Answered",null,null,"Not Answered",null,"Not Answered","Not Answered"]
[null,"Subcontractor #16",null,0,null,null,null,null,null,null,null,null,"/",null,null,null,null,null,null,"Not Answered",null,null,"Not Answered",null,null,"Not Answered",null,"Not Answered","Not Answered"]
[null,"Subcontractor #17",null,0,null,null,null,null,null,null,null,null,"/",null,null,null,null,null,null,"Not Answered",null,null,"Not Answered",null,null,"Not Answered",null,"Not Answered","Not Answered"]
[null,"Subcontractor #18",null,0,null,null,null,null,null,null,null,null,"/",null,null,null,null,null,null,"Not Answered",null,null,"Not Answered",null,null,"Not Answered",null,"Not Answered","Not Answered"]
[null,"Subcontractor #19",null,0,null,null,null,null,null,null,null,null,"/",null,null,null,null,null,null,"Not Answered",null,null,"Not Answered",null,null,"Not Answered",null,"Not Answered","Not Answered"]
[null,"Subcontractor #20",null,0,null,null,null,null,null,null,null,null,"/",null,null,null,null,null,null,"Not Answered",null,null,"Not Answered",null,null,"Not Answered",null,"Not Answered","Not Answered"]
[null,"Subcontractor #21",null,0,null,null,null,null,null,null,null,null,"/",null,null,null,null,null,null,"Not Answered",null,null,"Not Answered",null,null,"Not Answered",null,"Not Answered","Not Answered"]
[null,"Subcontractor #22",null,0,null,null,null,null,null,null,null,null,"/",null,null,null,null,null,null,"Not Answered",null,null,"Not Answered",null,null,"Not Answered",null,"Not Answered","Not Answered"]
[null,"Subcontractor #23",null,0,null,null,null,null,null,null,null,null,"/",null,null,null,null,null,null,"Not Answered",null,null,"Not Answered",null,null,"Not Answered",null,"Not Answered","Not Answered"]
[null,"Subcontractor #24",null,0,null,null,null,null,null,null,null,null,"/",null,null,null,null,null,null,"Not Answered",null,null,"Not Answered",null,null,"Not Answered",null,"Not Answered","Not Answered"]
[null,"Subcontractor #25",null,0,null,null,null,null,null,null,null,null,"/",null,null,null,null,null,null,"Not Answered",null,null,"Not Answered",null,null,"Not Answered",null,"Not Answered","Not Answered"]
[null,"Subcontractor #26",null,0,null,null,null,null,null,null,null,null,"/",null,null,null,null,null,null,"Not Answered",null,null,"Not Answered",null,null,"Not Answered",null,"Not Answered","Not Answered"]
[null,"Subcontractor #27",null,0,null,null,null,null,null,null,null,null,"/",null,null,null,null,null,null,"Not Answered",null,null,"Not Answered",null,null,"Not Answered",null,"Not Answered","Not Answered"]
[null,"Subcontractor #28",null,0,null,null,null,null,null,null,null,null,"/",null,null,null,null,null,null,"Not Answered",null,null,"Not Answered",null,null,"Not Answered",null,"Not Answered","Not Answered"]
[null,"Subcontractor #29",null,0,null,null,null,null,null,null,null,null,"/",null,null,null,null,null,null,"Not Answered",null,null,"Not Answered",null,null,"Not Answered",null,"Not Answered","Not Answered"]
[null,"Subcontractor #30",null,0,null,null,null,null,null,null,null,null,"/",null,null,null,null,null,null,"Not Answered",null,null,"Not Answered",null,null,"Not Answered",null,"Not Answered","Not Answered"]
[null,"Total Construction Subcontractor Amounts:",null,{"$f":"SUM(D82:G111)","v":0}]
[]
[]
[null,"PART 3.  NON-CONSTRUCTION CONTRACTS AWARDED"]
[null,null,"3(a)","3(b)",null,null,null,"3(c) ","3(d)",null,null,null,null,null,"3(e) ",null,null,"3(f)",null,null,"3(g)",null,null,"3(h)",null,null,"3(i)",null,"3(j)","3(k)"]
["Information  for  NON-CONSTRUCTION PRIME   Contractors",null,"Non-Construction Prime Contractor Name","Non-Construction Prime Contract Amount Total                         (CDBG Project Activities Only)",null,null,null,"Non-Construction Prime Contract Amount MINUS the Associated Subcontract Amounts","Street Address",null,null,null,null,null,"City",null,null,"State","/","ZIP","Prime Contractor             FEIN #                                   ( XX - XXXXXXX )",null,null,"Prime Contractor's Trade Code (See above.)",null,null,"Prme's Business' Race/Ethnicity                          (See above.)",null,"Women Owned Business? (Yes or No)","Section 3 Business?   (Yes or No)"]
[null,"Example","EFG Project Management, Inc.",900000,null,null,null,100000,"123 Main Street",null,null,null,null,null,"Madison",null,null,"WI","/",53703,"12-3456789",null,null,5,null,null,2,null,"No","Yes"]
[null,"Non-Constr. Prime #1",null,0,null,null,null,0,null,null,null,null,null,null,null,null,null,null,"/",null,null,null,null,"Not Answered",null,null,"Not Answered",null,"Not Answered","Not Answered"]
[null,"Non-Constr. Prime #2",null,0,null,null,null,0,null,null,null,null,null,null,null,null,null,null,"/",null,null,null,null,"Not Answered",null,null,"Not Answered",null,"Not Answered","Not Answered"]
[null,"Non-Constr. Prime #3",null,0,null,null,null,0,null,null,null,null,null,null,null,null,null,null,"/",null,null,null,null,"Not Answered",null,null,"Not Answered",null,"Not Answered","Not Answered"]
[null,"Non-Constr. Prime #4",null,0,null,null,null,0,null,null,null,null,null,null,null,null,null,null,"/",null,null,null,null,"Not Answered",null,null,"Not Answered",null,"Not Answered","Not Answered"]
[null,"Non-Constr. Prime #5",null,0,null,null,null,0,null,null,null,null,null,null,null,null,null,null,"/",null,null,null,null,"Not Answered",null,null,"Not Answered",null,"Not Answered","Not Answered"]
[null,"Non-Constr. Prime #6",null,0,null,null,null,0,null,null,null,null,null,null,null,null,null,null,"/",null,null,null,null,"Not Answered",null,null,"Not Answered",null,"Not Answered","Not Answered"]
[null,"Non-Constr. Prime #7",null,0,null,null,null,0,null,null,null,null,null,null,null,null,null,null,"/",null,null,null,null,"Not Answered",null,null,"Not Answered",null,"Not Answered","Not Answered"]
[null,"Non-Constr. Prime #8",null,0,null,null,null,0,null,null,null,null,null,null,null,null,null,null,"/",null,null,null,null,"Not Answered",null,null,"Not Answered",null,"Not Answered","Not Answered"]
[null,"Non-Constr. Prime #9",null,0,null,null,null,0,null,null,null,null,null,null,null,null,null,null,"/",null,null,null,null,"Not Answered",null,null,"Not Answered",null,"Not Answered","Not Answered"]
[null,"Non-Constr. Prime #10",null,0,null,null,null,0,null,null,null,null,null,null,null,null,null,null,"/",null,null,null,null,"Not Answered",null,null,"Not Answered",null,"Not Answered","Not Answered"]
[null,"Non-Constr. Prime #11",null,0,null,null,null,0,null,null,null,null,null,null,null,null,null,null,"/",null,null,null,null,"Not Answered",null,null,"Not Answered",null,"Not Answered","Not Answered"]
[null,"Non-Constr. Prime #12",null,0,null,null,null,0,null,null,null,null,null,null,null,null,null,null,"/",null,null,null,null,"Not Answered",null,null,"Not Answered",null,"Not Answered","Not Answered"]
[null,"Non-Constr. Prime #13",null,0,null,null,null,0,null,null,null,null,null,null,null,null,null,null,"/",null,null,null,null,"Not Answered",null,null,"Not Answered",null,"Not Answered","Not Answered"]
[null,"Non-Constr. Prime #14",null,0,null,null,null,0,null,null,null,null,null,null,null,null,null,null,"/",null,null,null,null,"Not Answered",null,null,"Not Answered",null,"Not Answered","Not Answered"]
[null,"Non-Constr. Prime #15",null,0,null,null,null,0,null,null,null,null,null,null,null,null,null,null,"/",null,null,null,null,"Not Answered",null,null,"Not Answered",null,"Not Answered","Not Answered"]
[null,"Total Non-Construction Prime Contract Amounts:",null,{"$f":"SUM(D119:D133)","v":0},null,null,null,{"$f":"SUM(H119:H133)","v":0}]
[]
[]
[null,null,"3(l)","3(m)",null,null,null,"3(n) ",null,null,"3(o) ",null,null,null,"3(p)",null,null,"3(q)",null,null,"3(k)","3(r)",null,null,null,null,"3(s)","3(t)","3(u)","3(v)"]
["Information for   NON-CONSTRUCTION SUBCONTRACTORS",null,"Non-Construction Subcontractor Name","Non-Construction Subcontract Amount Total                                                (CDBG Project Activities Only)",null,null,null,"Street Address",null,null,"City",null,null,null,"State","/","ZIP","Prime Contractor             FEIN #                                ( XX - XXXXXXX )",null,null,"Prime is Sec 3?","Subcontractor FEIN #                                    (XX - XXXXXXX)",null,null,null,null,"Subcontr. Trade Code (See above.)","Subcontr. Business' Race/ Ethnicity     (See above.)","Subcontr. is a Women Owned Business? (Yes or No)","Subcontr. is a Section 3 Business?   (Yes or No)"]
[null,"Example","XYZ Relocation Specialists, LLC",100000,null,null,null,"123 Wisconsin Avenue",null,null,"Janesville",null,null,null,"WI","/",53546,"12-3456789",null,null,"Yes","11-2223333",null,null,null,null,7,1,"Yes","No"]
[null,"Non-Constr. Sub #1",null,0,null,null,null,null,null,null,null,null,null,null,null,"/",null,null,null,null,"Not Answered",null,null,null,null,null,"Not Answered","Not Answered","Not Answered","Not Answered"]
[null,"Non-Constr. Sub #2",null,0,null,null,null,null,null,null,null,null,null,null,null,"/",null,null,null,null,"Not Answered",null,null,null,null,null,"Not Answered","Not Answered","Not Answered","Not Answered"]
[null,"Non-Constr. Sub #3",null,0,null,null,null,null,null,null,null,null,null,null,null,"/",null,null,null,null,"Not Answered",null,null,null,null,null,"Not Answered","Not Answered","Not Answered","Not Answered"]
[null,"Non-Constr. Sub #4",null,0,null,null,null,null,null,null,null,null,null,null,null,"/",null,null,null,null,"Not Answered",null,null,null,null,null,"Not Answered","Not Answered","Not Answered","Not Answered"]
[null,"Non-Constr. Sub #5",null,0,null,null,null,null,null,null,null,null,null,null,null,"/",null,null,null,null,"Not Answered",null,null,null,null,null,"Not Answered","Not Answered","Not Answered","Not Answered"]
[null,"Non-Constr. Sub #6",null,0,null,null,null,null,null,null,null,null,null,null,null,"/",null,null,null,null,"Not Answered",null,null,null,null,null,"Not Answered","Not Answered","Not Answered","Not Answered"]
[null,"Non-Constr. Sub #7",null,0,null,null,null,null,null,null,null,null,null,null,null,"/",null,null,null,null,"Not Answered",null,null,null,null,null,"Not Answered","Not Answered","Not Answered","Not Answered"]
[null,"Non-Constr. Sub #8",null,0,null,null,null,null,null,null,null,null,null,null,null,"/",null,null,null,null,"Not Answered",null,null,null,null,null,"Not Answered","Not Answered","Not Answered","Not Answered"]
[null,"Non-Constr. Sub #9",null,0,null,null,null,null,null,null,null,null,null,null,null,"/",null,null,null,null,"Not Answered",null,null,null,null,null,"Not Answered","Not Answered","Not Answered","Not Answered"]
[null,"Non-Constr. Sub #10",null,0,null,null,null,null,null,null,null,null,null,null,null,"/",null,null,null,null,"Not Answered",null,null,null,null,null,"Not Answered","Not Answered","Not Answered","Not Answered"]
[null,"Non-Constr. Sub #11",null,0,null,null,null,null,null,null,null,null,null,null,null,"/",null,null,null,null,"Not Answered",null,null,null,null,null,"Not Answered","Not Answered","Not Answered","Not Answered"]
[null,"Non-Constr. Sub #12",null,0,null,null,null,null,null,null,null,null,null,null,null,"/",null,null,null,null,"Not Answered",null,null,null,null,null,"Not Answered","Not Answered","Not Answered","Not Answered"]
[null,"Non-Constr. Sub #13",null,0,null,null,null,null,null,null,null,null,null,null,null,"/",null,null,null,null,"Not Answered",null,null,null,null,null,"Not Answered","Not Answered","Not Answered","Not Answered"]
[null,"Non-Constr. Sub #14",null,0,null,null,null,null,null,null,null,null,null,null,null,"/",null,null,null,null,"Not Answered",null,null,null,null,null,"Not Answered","Not Answered","Not Answered","Not Answered"]
[null,"Non-Constr. Sub #15",null,0,null,null,null,null,null,null,null,null,null,null,null,"/",null,null,null,null,"Not Answered",null,null,null,null,null,"Not Answered","Not Answered","Not Answered","Not Answered"]
[null,"Total for Non-Construction Subcontractors:",null,{"$f":"SUM(D140:D154)","v":0}]
[]
[]
[null,"PART 4.  LABOR STANDARDS COMPLAINTS",null,null,null,null,null,null,null,null,null,"PART 5.  LABOR STANDARDS MONITORING - PAYROLL UNDERPAYMENTS"]
[null,"Enter the Contractors [prime contractor(s), subcontractor(s), or lower-tier subcontractor(s)] for which complaints were filed or investigations or §5.11 hearings  occurred during this reporting period. ",null,null,null,null,null,null,null,null,null,"5(a)",null,null,null,null,"5(b)",null,null,"5(c)",null,null,null,"5(d)",null,null,null,"5(e)",null,"5(f)"]
[null,null,null,null,null,null,null,null,null,null,null,"Contractor's Name(s):",null,null,null,null,"Total # Workers Paid UNDERPAYMENT  Wage Restitution",null,null,"Total STRAIGHT-TIME Wage Restitution Paid",null,null,null,"Total OVERTIME Wage Restitution Paid",null,null,null,"Total Liquidated Damages Collected for CWHSSA Compliance",null,"Section 5.7 Form Attached?"]
[]
[null,"4(a)",null,"4(b)",null,null,null,"4(c) "]
[null,"Contractor's Name(s):",null,"HUD or DOL or Both?",null,null,null,"Investigation or Hearing or Both?",null,null,null,"Example:  XYZ Builders",null,null,null,null,12,null,null,4400,null,null,null,1500,null,null,null,6480,null,"Yes"]
[null,null,null,"Not Answered",null,null,null,"Not Answered",null,null,null,null,null,null,null,null,null,null,null,0,null,null,null,0,null,null,null,0,null,"Not Answered"]
[null,null,null,"Not Answered",null,null,null,"Not Answered",null,null,null,null,null,null,null,null,null,null,null,0,null,null,null,0,null,null,null,0,null,"Not Answered"]
[null,null,null,"Not Answered",null,null,null,"Not Answered",null,null,null,null,null,null,null,null,null,null,null,0,null,null,null,0,null,null,null,0,null,"Not Answered"]
[null,null,null,"Not Answered",null,null,null,"Not Answered",null,null,null,null,null,null,null,null,null,null,null,0,null,null,null,0,null,null,null,0,null,"Not Answered"]
[null,null,null,"Not Answered",null,null,null,"Not Answered",null,null,null,null,null,null,null,null,null,null,null,0,null,null,null,0,null,null,null,0,null,"Not Answered"]
[null,null,null,"Not Answered",null,null,null,"Not Answered",null,null,null,null,null,null,null,null,null,null,null,0,null,null,null,0,null,null,null,0,null,"Not Answered"]
[null,null,null,"Not Answered",null,null,null,"Not Answered",null,null,null,null,null,null,null,null,null,null,null,0,null,null,null,0,null,null,null,0,null,"Not Answered"]
[null,null,null,"Not Answered",null,null,null,"Not Answered",null,null,null,null,null,null,null,null,null,null,null,0,null,null,null,0,null,null,null,0,null,"Not Answered"]
[null,null,null,"Not Answered",null,null,null,"Not Answered",null,null,null,null,null,null,null,null,null,null,null,0,null,null,null,0,null,null,null,0,null,"Not Answered"]
[null,null,null,"Not Answered",null,null,null,"Not Answered",null,null,null,null,null,null,null,null,null,null,null,0,null,null,null,0,null,null,null,0,null,"Not Answered"]
[null,null,null,null,null,null,null,null,null,null,null,"Totals for All Contractors:",null,null,null,null,{"$f":"SUM(Q164:R173)","v":0},null,null,{"$f":"SUM(T164:U173)","v":0},null,null,null,{"$f":"SUM(X164:AA173)","v":0},null,null,null,{"$f":"SUM(AB164:AC173)","v":0}]
[]
[]
[" "]
[null,"PART 6.  SECTION 3 - NEW HIRING (TO BE COMPLETED BY GRANTEES AWARDED BEFORE 11/30/2020 ONLY.  REPORT NEW HIRING FOR THIS REPORTING PERIOD ONLY.)"]
[{"$f":"IF($Q$5=\"On or After\",1,0)","v":1},"6(a)",null,"6(b)",null,null,null,"6(c) ","6(d) ",null,null,"6(e) ",null,null,"6(f) ",null,null,"6(g) ",null,null,"6(h) ",null,"6(i) ",null,null,null,"6(j) ","6(k) ","6(l) ","6(m) "]
[{"$f":"IF($Q$5=\"On or After\",1,0)","v":1},"New Hiring",null,"Professionals",null,null,null,"Clerical","Case Management",null,null,"Facilities / Maintenance",null,null,"Technical (Bookkeeping,                         IT, etc.)",null,null,"Carpentry",null,null,"Masonry",null,"Plumbing",null,null,null,"Electrical","Admin.","Other:","Other:"]
[1,"(Include # of Full-Time New Hires made for the CDBG project during this reporting period only.)",null,null,null,null,null,null,null,null,null,null,null,null,null,null,null,null,null,null,null,null,null,null,null,null,null,null,"(Specify Job TYPE Here.)","(Specify Job TYPE Here.)"]
[1,"# of New Hires",null,0,null,null,null,0,0,null,null,0,null,null,0,null,null,0,null,null,0,null,0,null,null,null,0,0,0,0]
[1,"# of Section 3 New Hires",null,0,null,null,null,0,0,null,null,0,null,null,0,null,null,0,null,null,0,null,0,null,null,null,0,0,0,0]
[1,"# of Section 3 Trainees",null,0,null,null,null,0,0,null,null,0,null,null,0,null,null,0,null,null,0,null,0,null,null,null,0,0,0,0]
[]
[null,null,null,null,null,null,null,null,{"$f":"IF(I188>0,\"This PART 7 section (below) does not apply to your CDBG project.\",\" \")","v":" "}]
[null,"PART 7.  SECTION 3 - WORKER HOURS ON THIS CDBG PROJECT (TO BE COMPLETED BY GRANTEES AWARDED ON OR AFTER 11/30/2020 ONLY.  REPORT CUMULATIVE DATA TO DATE)"]
[null,"7(a) ","7(b)","7(c)",null,null,null,"7(d)",{"$f":"IF($Q$5=\"Before\",1,0)","v":0},null,"7(e) ",null,null,null,"7(f)",null,null,"7(g)",null,null,"7(h)",null,null,null,"7(i) ",null,null,"7(j)","7(k)","7(l)"]
["**** Information for CONSTRUCTION PRIME Contractors                                                           AND GRANTEES/UGLGs & SUBRECIPIENTS with Construction Work  ****","Construction PRIME Contractor's Name; or GRANTEE/UGLG Name or SUBRECIPIENT Name (if had Construction work hours)","Total Hours Worked by ALL Workers on this CDBG Project             To Date","Total Hours Worked by ALL SECTION 3 Workers",null,null,null,"Total Hours Worked by TARGETED SECTION 3 Workers",{"$f":"IF($Q$5=\"Before\",1,0)","v":0},"***** Information for   CONSTRUCTION  SUBCONTRACTORS    *****","Construction SUBCONTRACTOR'S Name:",null,null,null,"Total Hours Worked by ALL Workers    on this                    CDBG Project           To Date",null,null,"Total Hours Worked by ALL SECTION 3 Workers",null,null,"Total Hours Worked by TARGETED SECTION 3 Workers",null,null,"**  Information for   NON-CONSTRUCTION PRIME Contractors                           AND GRANTEES/UGLGs & SUBRECIPIENTS  **","Non-Construction PRIME Contractor's Name; or GRANTEE Name or SUBRECIPIENT Name (if had any Non-Construction work hours):",null,null,"Total Hours Worked by ALL Workers on this CDBG Project             To Date","Total Hours Worked by ALL SECTION 3 Workers","Total Hours Worked by TARGETED SECTION 3 Workers"]
[null,"LMN Contractors, Inc.",2500,45,null,null,null,20,0,null,"QPR Contractors, Inc.",null,null,null,3000,null,null,150,null,null,50,null,null,null,"STU Contractors, Inc.",null,null,200,25,5]
[null,null,null,null,null,null,null,null,0]
[null,null,null,null,null,null,null,null,0]
[null,null,null,null,null,null,null,null,0]
[null,null,null,null,null,null,null,null,0]
[null,null,null,null,null,null,null,null,0]
[null,null,null,null,null,null,null,null,0]
[null,null,null,null,null,null,null,null,0]
[null,null,null,null,null,null,null,null,0]
[null,null,null,null,null,null,null,null,0]
[null,null,null,null,null,null,null,null,0]
[null,null,null,null,null,null,null,null,0]
[null,null,null,null,null,null,null,null,0]
[null,null,null,null,null,null,null,null,0,null,null,null,null,null,null,null,null,null,null,null,null,null,null,null,"Total(s):",null,null,{"$f":"SUM(AB191:AB202)","v":0},{"$f":"SUM(AC191:AC202)","v":0},{"$f":"SUM(AD191:AD202)","v":0}]
[null,null,null,null,null,null,null,null,0]
[null,null,null,null,null,null,null,null,0]
[null,null,null,null,null,null,null,null,0,null,null,null,null,null,null,null,null,null,null,null,null,null,null,null,"7(m) ",null,null,"7(n)","7(o)","7(p)"]
[null,null,null,null,null,null,null,null,0,null,null,null,null,null,null,null,null,null,null,null,null,null,null,"**  Information for   NON-CONSTRUCTION SUBCONTRACTORS   **","Non-Construction SUBCONTRACTOR'S Name:",null,null,"Total Hours Worked by ALL Workers on this CDBG Project             To Date","Total Hours Worked by ALL SECTION 3 Workers ","Total Hours Worked by TARGETED SECTION 3 Workers "]
[null,null,null,null,null,null,null,null,0]
[null,null,null,null,null,null,null,null,0]
[null,null,null,null,null,null,null,null,0]
[null,"Total(s):",{"$f":"SUM(C191:C210)","v":0},{"$f":"SUM(D191:G210)","v":0},null,null,null,{"$f":"SUM(H191:H210)","v":0},0,null,"Total(s):",null,null,null,{"$f":"SUM(O191:Q210)","v":0},null,null,{"$f":"SUM(R191:T210)","v":0},null,null,{"$f":"SUM(U191:V210)","v":0}]
[null,null,null,null,null,null,null,null,0]
[null,null,null,null,null,null,null,null,0]
[null,null,null,null,null,null,null,null,{"$f":"IF($Q$5=\"Before\",1,0)","v":0},null,null,null,null,null,null,null,null,null,null,null,null,null,null,null,"VWX Contractors, Inc.",null,null,50,10,0]
[null,null,null,null,null,null,null,null,0]
[null,null,null,null,null,null,null,null,0]
[null,null,null,null,null,null,null,null,0]
["Section 3 \"Safe Harbor\" Benchmarks:",null,null,null,null,null,null,null,0]
[null,null,null,null,null,null,null,null,0]
[1,"25% or more of ALL labor hours must be worked by Section 3 Workers.",null,null,null,null,null,null,0,null,"Calculation Double-Check(s)"]
[null,"Percentage all labor ",null,null,null,null,null,null,0,null,"Total Targeted Sec3 Hours Worked:",null,null,null,null,null,null,{"$f":"H211+U211+AD203+AD230","v":0}]
[null,"hours worked by Sec3",null,null,"=",null,{"$f":"R222/R223","v":{"$error":"#DIV/0!"}},null,0,null,"Total Sec3 Hours Worked:",null,null,null,null,null,null,{"$f":"D211+R211+AC203+AC230","v":0}]
[null,null,null,null,null,null,null,null,0,null,"Total Hours Worked:",null,null,null,null,null,null,{"$f":"C211+O211+AB203+AB230","v":0}]
[2,"5% or more of ALL labor hours must be worked by Targeted Section 3 Workers.",null,null,null,null,null,null,0]
[null,"Percentage all labor",null,null,null,null,null,null,0]
[null,"hours worked by",null,null,null,null,null,null,0]
[null,"Targeted Sec3 workers",null,null,"=",null,{"$f":"R221/R223","v":{"$error":"#DIV/0!"}},null,0]
[null,null,null,null,null,null,null,null,0]
[null,null,null,null,null,null,null,null,0]
[null,null,null,null,null,null,null,null,0,null,null,null,null,null,null,null,null,null,null,null,null,null,null,null,"Total(s):",null,null,{"$f":"SUM(AB215:AB227)","v":0},{"$f":"SUM(AC215:AC227)","v":0},{"$f":"SUM(AD215:AD227)","v":0}]
[]
[]
[]
[null,"PART 8.  SECTION 3 - OUTREACH/PROMOTION & BEST EFFORTS"]
[{"$f":"IF($Q$5=\"On or After\",1,IF($Q$5=\"Before\",2,0))","v":1}]
[null,null,null,null,null,"To Be Completed By CDBG Grantees Awarded ON OR AFTER 11/30/2020 Only:  Check ALL that apply - Report",null,null,null,null,null,null,null,null,null,null,null,null,null,null,null,null,"To Be Completed By CDBG Grantees Awarded BEFORE 11/30/2020"]
[null,null,null,null,null,"all actions taken TO DATE FOR THIS CDBG PROJECT.  Maintain records and make available for HUD to review",null,null,null,null,null,null,null,null,null,null,null,null,null,null,null,null,"Only:  Check ALL that apply - Report all actions taken FOR THIS"]
[null,null,null,null,null,"documentation of any efforts marked.",null,null,null,"TIP:  Most common entries are #1-7 and #13 - Refer to \"TIP\" notes",null,null,null,null,null,null,null,null,null,null,null,null,"REPORTING PERIOD ONLY.  Maintain records and make available"]
[null,null,null,null,"\"X\"","(denoted with the red triangles in the upper right corners of cells) to determine if the item should be checked.",null,null,null,null,null,null,null,null,null,null,null,null,null,null,null,"\"X\"","for HUD to review documentation of any efforts checked."]
[{"$f":"IF($Q$5=\"On or After\",1,IF($Q$5=\"Before\",2,0))","v":1},null,null,null,null,null,"1. No actions taken to date to demonstrate Section 3 \"best efforts\" in meeting HUD Section 3 Benchmarks.",null,null,null,null,null,null,null,null,null,null,null,null,null,"HIRING    Efforts",null,"1. No New Hiring occurred during reporting period."]
[1,null,null,null,null,null,"2. Outreach efforts to identify and secure bids from Section 3 business concerns.",null,null,null,null,null,null,null,null,null,null,null,null,null,null,null,"2. Job Posting(s) at local Job Center."]
[1,null,null,null,null,null,"3. Outreach efforts to generate job applicants who are Public Housing Targeted Workers.",null,null,null,null,null,null,null,null,null,null,null,null,null,null,null,"3. Job Posting(s) at local Housing Authority."]
[1,null,null,null,null,null,"4. Outreach efforts to generate job applicants who are Other Funding Targeted Workers.",null,null,null,null,null,null,null,null,null,null,null,null,null,null,null,"4. Job Posting(s) in local Newspaper/Media Publication in LMI Community."]
[1,null,null,null,null,null,"5. Direct, on-the-job training (including apprenticeships).",null,null,null,null,null,null,null,null,null,null,null,null,null,null,null,"5. Job Posting(s) at central location(s) in LMI Community."]
[1,null,null,null,null,null,"6. Indirect training such as arranging for, contracting for, or paying tuition for, off-site training.",null,null,null,null,null,null,null,null,null,null,null,null,null,null,null,"6. Job Posting(s) on Municipal Website in LMI Community."]
[1,null,null,null,null,null,"7. Division of contracts into smaller jobs to facilitate participation by Section 3 business concerns.",null,null,null,null,null,null,null,null,null,null,null,null,null,null,null,"7. Job Posting(s) at Technical College(s)."]
[1,null,null,null,null,null,"8. Technical assistance to help Section 3 workers compete for jobs (e.g., resume assistance, coaching, etc.).",null,null,null,null,null,null,null,null,null,null,null,null,null,null,null,"8. Section 3 Requirements provided to local Labor Union(s)."]
[1,null,null,null,null,null,"9. Technical assistance to help Section 3 business concerns understand and bid on contracts.",null,null,null,null,null,null,null,null,null,null,null,null,null,null,null,"9. Other:",null,"[Describe/specify here.]"]
[1,null,null,null,null,null,"10. Provided or connected residents with assistance in seeking employment including:  drafting resumes, preparing for interviews, finding job opportunities, connecting residents to job placement services.",null,null,null,null,null,null,null,null,null,null,null,null,null,null,null,"10. Other:",null,"[Describe/specify here.]"]
[1,null,null,null,null,null,null,null,null,null,null,null,null,null,null,null,null,null,null,null,"CONTRACTING    Efforts"]
[1,null,null,null,null,null,"11. Held one or more job fairs.",null,null,null,null,null,null,null,null,null,null,null,null,null,null,null,"1. No New Contracting during reporting period."]
[1,null,null,null,null,null,"12. Provided or connected residents with supportive services that can provide direct services or referrals.",null,null,null,null,null,null,null,null,null,null,null,null,null,null,null,"2. Section 3 Requirements language in Procurement Solicitation(s)."]
[1,null,null,null,null,null,"13. Provided or connected residents with supportive services that provide one or more of the following:  work readiness health screenings, interview clothing, uniforms, test fees, transportation.",null,null,null,null,null,null,null,null,null,null,null,null,null,null,null,"3. Section 3 Requirements language in Contract(s)."]
[1,null,null,null,null,null,null,null,null,null,null,null,null,null,null,null,null,null,null,null,null,null,"4. Outreach to Disadvantaged Businesses."]
[1,null,null,null,null,null,"14. Assisted residents with finding child care.",null,null,null,null,null,null,null,null,null,null,null,null,null,null,null,"5. Procurement Solicitation(s) in Local Newspaper in LMI Community."]
[1,null,null,null,null,null,"15. Assisted residents to apply for (or attend) community college or a four (4) year educational institution.",null,null,null,null,null,null,null,null,null,null,null,null,null,null,null,"6. Procurement Solicitation(s) at central location(s) in LMI Community."]
[1,null,null,null,null,null,"16. Assisted residents to apply for (or attend) vocational/technical training.",null,null,null,null,null,null,null,null,null,null,null,null,null,null,null,"7. Procurement Solicitation(s) on Municipal Website in LMI Community."]
[1,null,null,null,null,null,"17. Assisted residents to obtain financial literacy training and/or coaching.",null,null,null,null,null,null,null,null,null,null,null,null,null,null,null,"8. Procurement Solicitation Published on State of WI VendorNet."]
[1,null,null,null,null,null,"18. Bonding assistance, guaranties, or other efforts to support viable bids from Section 3 business concerns.",null,null,null,null,null,null,null,null,null,null,null,null,null,null,null,"9. Other:",null,"[Describe/specify here.]"]
[1,null,null,null,null,null,"19. Provided or connected residents with training on computer use or online technologies.",null,null,null,null,null,null,null,null,null,null,null,null,null,null,null,"10. Other:",null,"[Describe/specify here.]"]
[null,null,null,null,null,null,"20. Other:","[Describe/specify here.]"]
[null,"PART 9.  COMMENTS"]
[]
[null,"[Provide additional comments/explanations here.]   "]

{"sheet":"Drop-Down Options","index":1,"n_rows":13,"n_cols":7,"rows_kept":13,"cut":false,"hidden":false,"merged":[]}
[]
["Trade Code(s):","Racial / Ethnic Code(s):","Yes / No:","Yes / No / Not Applicable:","HUD / DOL / Both","Investigation / Hearing / Both","Grant Award Date"]
["Not Answered","Not Answered","Not Answered","Not Answered","Not Answered","Not Answered","Not Answered"]
[1,1,"Yes","Yes","HUD","Investigation","Before"]
[2,2,"No","No","DOL","Hearing","On or After"]
[3,3,null,"Not Applicable","Both","Both"]
[4,4]
[5,5]
[6,6]
[7]
[8]
[9]
[0]

{"sheet":"HUD Form 2516_Rev","index":2,"n_rows":77,"n_cols":17,"rows_kept":77,"cut":false,"hidden":false,"merged":[[4,0,23,0],[3,11,3,16],[25,0,54,0],[56,0,65,0],[67,0,76,0]]}
[]
[]
[null,null,"Grant/Project Number","Amount of Contract or Subcontract","Type of Trade Code","Business' Race / Ethnicity","WBE?","Prime's FEIN","Prime is Sec3?","Subcontractor's FEIN","Subcontr.              is Sec3?","Name","Street","City","State","/","ZIP Code"]
[null,null,"7a.","7b.","7c.","7d.","7e.","7f.","7g.","7h.","7i.","7j."]
["***** Information for   CONSTRUCTION PRIME   Contractors *****",1,{"$f":"'Reporting Info'!AB5","v":"(Grant Agreement #)"},{"$f":"'Reporting Info'!H31","v":0},{"$f":"'Reporting Info'!X31","v":"Not Answered"},{"$f":"'Reporting Info'!AA31","v":"Not Answered"},{"$f":"'Reporting Info'!AC31","v":"Not Answered"},{"$f":"'Reporting Info'!U31","v":0},{"$f":"'Reporting Info'!AD31","v":"Not Answered"},"Not Applicable","Not Applicable",{"$f":"'Reporting Info'!C31","v":0},{"$f":"'Reporting Info'!I31","v":0},{"$f":"'Reporting Info'!O31","v":0},{"$f":"'Reporting Info'!R31","v":0},"/",{"$f":"'Reporting Info'!T31","v":0}]
[null,2,{"$f":"'Reporting Info'!AB5","v":"(Grant Agreement #)"},{"$f":"'Reporting Info'!H32","v":0},{"$f":"'Reporting Info'!X32","v":"Not Answered"},{"$f":"'Reporting Info'!AA32","v":"Not Answered"},{"$f":"'Reporting Info'!AC32","v":"Not Answered"},{"$f":"'Reporting Info'!U32","v":0},{"$f":"'Reporting Info'!AD32","v":"Not Answered"},"Not Applicable","Not Applicable",{"$f":"'Reporting Info'!C32","v":0},{"$f":"'Reporting Info'!I32","v":0},{"$f":"'Reporting Info'!O32","v":0},{"$f":"'Reporting Info'!R32","v":0},"/",{"$f":"'Reporting Info'!T32","v":0}]
[null,3,{"$f":"'Reporting Info'!AB5","v":"(Grant Agreement #)"},{"$f":"'Reporting Info'!H33","v":0},{"$f":"'Reporting Info'!X33","v":"Not Answered"},{"$f":"'Reporting Info'!AA33","v":"Not Answered"},{"$f":"'Reporting Info'!AC33","v":"Not Answered"},{"$f":"'Reporting Info'!U33","v":0},{"$f":"'Reporting Info'!AD33","v":"Not Answered"},"Not Applicable","Not Applicable",{"$f":"'Reporting Info'!C33","v":0},{"$f":"'Reporting Info'!I33","v":0},{"$f":"'Reporting Info'!O33","v":0},{"$f":"'Reporting Info'!R33","v":0},"/",{"$f":"'Reporting Info'!T33","v":0}]
[null,4,{"$f":"'Reporting Info'!AB5","v":"(Grant Agreement #)"},{"$f":"'Reporting Info'!H34","v":0},{"$f":"'Reporting Info'!X34","v":"Not Answered"},{"$f":"'Reporting Info'!AA34","v":"Not Answered"},{"$f":"'Reporting Info'!AC34","v":"Not Answered"},{"$f":"'Reporting Info'!U34","v":0},{"$f":"'Reporting Info'!AD34","v":"Not Answered"},"Not Applicable","Not Applicable",{"$f":"'Reporting Info'!C34","v":0},{"$f":"'Reporting Info'!I34","v":0},{"$f":"'Reporting Info'!O34","v":0},{"$f":"'Reporting Info'!R34","v":0},"/",{"$f":"'Reporting Info'!T34","v":0}]
[null,5,{"$f":"'Reporting Info'!AB5","v":"(Grant Agreement #)"},{"$f":"'Reporting Info'!H35","v":0},{"$f":"'Reporting Info'!X35","v":"Not Answered"},{"$f":"'Reporting Info'!AA35","v":"Not Answered"},{"$f":"'Reporting Info'!AC35","v":"Not Answered"},{"$f":"'Reporting Info'!U35","v":0},{"$f":"'Reporting Info'!AD35","v":"Not Answered"},"Not Applicable","Not Applicable",{"$f":"'Reporting Info'!C35","v":0},{"$f":"'Reporting Info'!I35","v":0},{"$f":"'Reporting Info'!O35","v":0},{"$f":"'Reporting Info'!R35","v":0},"/",{"$f":"'Reporting Info'!T35","v":0}]
[null,6,{"$f":"'Reporting Info'!AB5","v":"(Grant Agreement #)"},{"$f":"'Reporting Info'!H36","v":0},{"$f":"'Reporting Info'!X36","v":"Not Answered"},{"$f":"'Reporting Info'!AA36","v":"Not Answered"},{"$f":"'Reporting Info'!AC36","v":"Not Answered"},{"$f":"'Reporting Info'!U36","v":0},{"$f":"'Reporting Info'!AD36","v":"Not Answered"},"Not Applicable","Not Applicable",{"$f":"'Reporting Info'!C36","v":0},{"$f":"'Reporting Info'!I36","v":0},{"$f":"'Reporting Info'!O36","v":0},{"$f":"'Reporting Info'!R36","v":0},"/",{"$f":"'Reporting Info'!T36","v":0}]
[null,7,{"$f":"'Reporting Info'!AB5","v":"(Grant Agreement #)"},{"$f":"'Reporting Info'!H37","v":0},{"$f":"'Reporting Info'!X37","v":"Not Answered"},{"$f":"'Reporting Info'!AA37","v":"Not Answered"},{"$f":"'Reporting Info'!AC37","v":"Not Answered"},{"$f":"'Reporting Info'!U37","v":0},{"$f":"'Reporting Info'!AD37","v":"Not Answered"},"Not Applicable","Not Applicable",{"$f":"'Reporting Info'!C37","v":0},{"$f":"'Reporting Info'!I37","v":0},{"$f":"'Reporting Info'!O37","v":0},{"$f":"'Reporting Info'!R37","v":0},"/",{"$f":"'Reporting Info'!T37","v":0}]
[null,8,{"$f":"'Reporting Info'!AB5","v":"(Grant Agreement #)"},{"$f":"'Reporting Info'!H38","v":0},{"$f":"'Reporting Info'!X38","v":"Not Answered"},{"$f":"'Reporting Info'!AA38","v":"Not Answered"},{"$f":"'Reporting Info'!AC38","v":"Not Answered"},{"$f":"'Reporting Info'!U38","v":0},{"$f":"'Reporting Info'!AD38","v":"Not Answered"},"Not Applicable","Not Applicable",{"$f":"'Reporting Info'!C38","v":0},{"$f":"'Reporting Info'!I38","v":0},{"$f":"'Reporting Info'!O38","v":0},{"$f":"'Reporting Info'!R38","v":0},"/",{"$f":"'Reporting Info'!T38","v":0}]
[null,9,{"$f":"'Reporting Info'!AB5","v":"(Grant Agreement #)"},{"$f":"'Reporting Info'!H39","v":0},{"$f":"'Reporting Info'!X39","v":"Not Answered"},{"$f":"'Reporting Info'!AA39","v":"Not Answered"},{"$f":"'Reporting Info'!AC39","v":"Not Answered"},{"$f":"'Reporting Info'!U39","v":0},{"$f":"'Reporting Info'!AD39","v":"Not Answered"},"Not Applicable","Not Applicable",{"$f":"'Reporting Info'!C39","v":0},{"$f":"'Reporting Info'!I39","v":0},{"$f":"'Reporting Info'!O39","v":0},{"$f":"'Reporting Info'!R39","v":0},"/",{"$f":"'Reporting Info'!T39","v":0}]
[null,10,{"$f":"'Reporting Info'!AB5","v":"(Grant Agreement #)"},{"$f":"'Reporting Info'!H40","v":0},{"$f":"'Reporting Info'!X40","v":"Not Answered"},{"$f":"'Reporting Info'!AA40","v":"Not Answered"},{"$f":"'Reporting Info'!AC40","v":"Not Answered"},{"$f":"'Reporting Info'!U40","v":0},{"$f":"'Reporting Info'!AD40","v":"Not Answered"},"Not Applicable","Not Applicable",{"$f":"'Reporting Info'!C40","v":0},{"$f":"'Reporting Info'!I40","v":0},{"$f":"'Reporting Info'!O40","v":0},{"$f":"'Reporting Info'!R40","v":0},"/",{"$f":"'Reporting Info'!T40","v":0}]
[null,11,{"$f":"'Reporting Info'!AB5","v":"(Grant Agreement #)"},{"$f":"'Reporting Info'!H41","v":0},{"$f":"'Reporting Info'!X41","v":"Not Answered"},{"$f":"'Reporting Info'!AA41","v":"Not Answered"},{"$f":"'Reporting Info'!AC41","v":"Not Answered"},{"$f":"'Reporting Info'!U41","v":0},{"$f":"'Reporting Info'!AD41","v":"Not Answered"},"Not Applicable","Not Applicable",{"$f":"'Reporting Info'!C41","v":0},{"$f":"'Reporting Info'!I41","v":0},{"$f":"'Reporting Info'!O41","v":0},{"$f":"'Reporting Info'!R41","v":0},"/",{"$f":"'Reporting Info'!T41","v":0}]
[null,12,{"$f":"'Reporting Info'!AB5","v":"(Grant Agreement #)"},{"$f":"'Reporting Info'!H42","v":0},{"$f":"'Reporting Info'!X42","v":"Not Answered"},{"$f":"'Reporting Info'!AA42","v":"Not Answered"},{"$f":"'Reporting Info'!AC42","v":"Not Answered"},{"$f":"'Reporting Info'!U42","v":0},{"$f":"'Reporting Info'!AD42","v":"Not Answered"},"Not Applicable","Not Applicable",{"$f":"'Reporting Info'!C42","v":0},{"$f":"'Reporting Info'!I42","v":0},{"$f":"'Reporting Info'!O42","v":0},{"$f":"'Reporting Info'!R42","v":0},"/",{"$f":"'Reporting Info'!T42","v":0}]
[null,13,{"$f":"'Reporting Info'!AB5","v":"(Grant Agreement #)"},{"$f":"'Reporting Info'!H43","v":0},{"$f":"'Reporting Info'!X43","v":"Not Answered"},{"$f":"'Reporting Info'!AA43","v":"Not Answered"},{"$f":"'Reporting Info'!AC43","v":"Not Answered"},{"$f":"'Reporting Info'!U43","v":0},{"$f":"'Reporting Info'!AD43","v":"Not Answered"},"Not Applicable","Not Applicable",{"$f":"'Reporting Info'!C43","v":0},{"$f":"'Reporting Info'!I43","v":0},{"$f":"'Reporting Info'!O43","v":0},{"$f":"'Reporting Info'!R43","v":0},"/",{"$f":"'Reporting Info'!T43","v":0}]
[null,14,{"$f":"'Reporting Info'!AB5","v":"(Grant Agreement #)"},{"$f":"'Reporting Info'!H44","v":0},{"$f":"'Reporting Info'!X44","v":"Not Answered"},{"$f":"'Reporting Info'!AA44","v":"Not Answered"},{"$f":"'Reporting Info'!AC44","v":"Not Answered"},{"$f":"'Reporting Info'!U44","v":0},{"$f":"'Reporting Info'!AD44","v":"Not Answered"},"Not Applicable","Not Applicable",{"$f":"'Reporting Info'!C44","v":0},{"$f":"'Reporting Info'!I44","v":0},{"$f":"'Reporting Info'!O44","v":0},{"$f":"'Reporting Info'!R44","v":0},"/",{"$f":"'Reporting Info'!T44","v":0}]
[null,15,{"$f":"'Reporting Info'!AB5","v":"(Grant Agreement #)"},{"$f":"'Reporting Info'!H45","v":0},{"$f":"'Reporting Info'!X45","v":"Not Answered"},{"$f":"'Reporting Info'!AA45","v":"Not Answered"},{"$f":"'Reporting Info'!AC45","v":"Not Answered"},{"$f":"'Reporting Info'!U45","v":0},{"$f":"'Reporting Info'!AD45","v":"Not Answered"},"Not Applicable","Not Applicable",{"$f":"'Reporting Info'!C45","v":0},{"$f":"'Reporting Info'!I45","v":0},{"$f":"'Reporting Info'!O45","v":0},{"$f":"'Reporting Info'!R45","v":0},"/",{"$f":"'Reporting Info'!T45","v":0}]
[null,16,{"$f":"'Reporting Info'!AB5","v":"(Grant Agreement #)"},{"$f":"'Reporting Info'!H46","v":0},{"$f":"'Reporting Info'!X46","v":"Not Answered"},{"$f":"'Reporting Info'!AA46","v":"Not Answered"},{"$f":"'Reporting Info'!AC46","v":"Not Answered"},{"$f":"'Reporting Info'!U46","v":0},{"$f":"'Reporting Info'!AD46","v":"Not Answered"},"Not Applicable","Not Applicable",{"$f":"'Reporting Info'!C46","v":0},{"$f":"'Reporting Info'!I46","v":0},{"$f":"'Reporting Info'!O46","v":0},{"$f":"'Reporting Info'!R46","v":0},"/",{"$f":"'Reporting Info'!T46","v":0}]
[null,17,{"$f":"'Reporting Info'!AB5","v":"(Grant Agreement #)"},{"$f":"'Reporting Info'!H47","v":0},{"$f":"'Reporting Info'!X47","v":"Not Answered"},{"$f":"'Reporting Info'!AA47","v":"Not Answered"},{"$f":"'Reporting Info'!AC47","v":"Not Answered"},{"$f":"'Reporting Info'!U47","v":0},{"$f":"'Reporting Info'!AD47","v":"Not Answered"},"Not Applicable","Not Applicable",{"$f":"'Reporting Info'!C47","v":0},{"$f":"'Reporting Info'!I47","v":0},{"$f":"'Reporting Info'!O47","v":0},{"$f":"'Reporting Info'!R47","v":0},"/",{"$f":"'Reporting Info'!T47","v":0}]
[null,18,{"$f":"'Reporting Info'!AB5","v":"(Grant Agreement #)"},{"$f":"'Reporting Info'!H48","v":0},{"$f":"'Reporting Info'!X48","v":"Not Answered"},{"$f":"'Reporting Info'!AA48","v":"Not Answered"},{"$f":"'Reporting Info'!AC48","v":"Not Answered"},{"$f":"'Reporting Info'!U48","v":0},{"$f":"'Reporting Info'!AD48","v":"Not Answered"},"Not Applicable","Not Applicable",{"$f":"'Reporting Info'!C48","v":0},{"$f":"'Reporting Info'!I48","v":0},{"$f":"'Reporting Info'!O48","v":0},{"$f":"'Reporting Info'!R48","v":0},"/",{"$f":"'Reporting Info'!T48","v":0}]
[null,19,{"$f":"'Reporting Info'!AB5","v":"(Grant Agreement #)"},{"$f":"'Reporting Info'!H49","v":0},{"$f":"'Reporting Info'!X49","v":"Not Answered"},{"$f":"'Reporting Info'!AA49","v":"Not Answered"},{"$f":"'Reporting Info'!AC49","v":"Not Answered"},{"$f":"'Reporting Info'!U49","v":0},{"$f":"'Reporting Info'!AD49","v":"Not Answered"},"Not Applicable","Not Applicable",{"$f":"'Reporting Info'!C49","v":0},{"$f":"'Reporting Info'!I49","v":0},{"$f":"'Reporting Info'!O49","v":0},{"$f":"'Reporting Info'!R49","v":0},"/",{"$f":"'Reporting Info'!T49","v":0}]
[null,20,{"$f":"'Reporting Info'!AB5","v":"(Grant Agreement #)"},{"$f":"'Reporting Info'!H50","v":0},{"$f":"'Reporting Info'!X50","v":"Not Answered"},{"$f":"'Reporting Info'!AA50","v":"Not Answered"},{"$f":"'Reporting Info'!AC50","v":"Not Answered"},{"$f":"'Reporting Info'!U50","v":0},{"$f":"'Reporting Info'!AD50","v":"Not Answered"},"Not Applicable","Not Applicable",{"$f":"'Reporting Info'!C50","v":0},{"$f":"'Reporting Info'!I50","v":0},{"$f":"'Reporting Info'!O50","v":0},{"$f":"'Reporting Info'!R50","v":0},"/",{"$f":"'Reporting Info'!T50","v":0}]
[]
["***** Information for   CONSTRUCTION SUBCONTRACTORS    *****",1,{"$f":"'Reporting Info'!AB5","v":"(Grant Agreement #)"},{"$f":"'Reporting Info'!D82","v":0},{"$f":"'Reporting Info'!W82","v":"Not Answered"},{"$f":"'Reporting Info'!Z82","v":"Not Answered"},{"$f":"'Reporting Info'!AB82","v":"Not Answered"},{"$f":"'Reporting Info'!P82","v":0},{"$f":"'Reporting Info'!T82","v":"Not Answered"},{"$f":"'Reporting Info'!U82","v":0},{"$f":"'Reporting Info'!AC82","v":"Not Answered"},{"$f":"'Reporting Info'!C82","v":0},{"$f":"'Reporting Info'!H82","v":0},{"$f":"'Reporting Info'!I82","v":0},{"$f":"'Reporting Info'!L82","v":0},"/",{"$f":"'Reporting Info'!N82","v":0}]
[null,2,{"$f":"'Reporting Info'!AB5","v":"(Grant Agreement #)"},{"$f":"'Reporting Info'!D83","v":0},{"$f":"'Reporting Info'!W83","v":"Not Answered"},{"$f":"'Reporting Info'!Z83","v":"Not Answered"},{"$f":"'Reporting Info'!AB83","v":"Not Answered"},{"$f":"'Reporting Info'!P83","v":0},{"$f":"'Reporting Info'!T83","v":"Not Answered"},{"$f":"'Reporting Info'!U83","v":0},{"$f":"'Reporting Info'!AC83","v":"Not Answered"},{"$f":"'Reporting Info'!C83","v":0},{"$f":"'Reporting Info'!H83","v":0},{"$f":"'Reporting Info'!I83","v":0},{"$f":"'Reporting Info'!L83","v":0},"/",{"$f":"'Reporting Info'!N83","v":0}]
[null,3,{"$f":"'Reporting Info'!AB5","v":"(Grant Agreement #)"},{"$f":"'Reporting Info'!D84","v":0},{"$f":"'Reporting Info'!W84","v":"Not Answered"},{"$f":"'Reporting Info'!Z84","v":"Not Answered"},{"$f":"'Reporting Info'!AB84","v":"Not Answered"},{"$f":"'Reporting Info'!P84","v":0},{"$f":"'Reporting Info'!T84","v":"Not Answered"},{"$f":"'Reporting Info'!U84","v":0},{"$f":"'Reporting Info'!AC84","v":"Not Answered"},{"$f":"'Reporting Info'!C84","v":0},{"$f":"'Reporting Info'!H84","v":0},{"$f":"'Reporting Info'!I84","v":0},{"$f":"'Reporting Info'!L84","v":0},"/",{"$f":"'Reporting Info'!N84","v":0}]
[null,4,{"$f":"'Reporting Info'!AB5","v":"(Grant Agreement #)"},{"$f":"'Reporting Info'!D85","v":0},{"$f":"'Reporting Info'!W85","v":"Not Answered"},{"$f":"'Reporting Info'!Z85","v":"Not Answered"},{"$f":"'Reporting Info'!AB85","v":"Not Answered"},{"$f":"'Reporting Info'!P85","v":0},{"$f":"'Reporting Info'!T85","v":"Not Answered"},{"$f":"'Reporting Info'!U85","v":0},{"$f":"'Reporting Info'!AC85","v":"Not Answered"},{"$f":"'Reporting Info'!C85","v":0},{"$f":"'Reporting Info'!H85","v":0},{"$f":"'Reporting Info'!I85","v":0},{"$f":"'Reporting Info'!L85","v":0},"/",{"$f":"'Reporting Info'!N85","v":0}]
[null,5,{"$f":"'Reporting Info'!AB5","v":"(Grant Agreement #)"},{"$f":"'Reporting Info'!D86","v":0},{"$f":"'Reporting Info'!W86","v":"Not Answered"},{"$f":"'Reporting Info'!Z86","v":"Not Answered"},{"$f":"'Reporting Info'!AB86","v":"Not Answered"},{"$f":"'Reporting Info'!P86","v":0},{"$f":"'Reporting Info'!T86","v":"Not Answered"},{"$f":"'Reporting Info'!U86","v":0},{"$f":"'Reporting Info'!AC86","v":"Not Answered"},{"$f":"'Reporting Info'!C86","v":0},{"$f":"'Reporting Info'!H86","v":0},{"$f":"'Reporting Info'!I86","v":0},{"$f":"'Reporting Info'!L86","v":0},"/",{"$f":"'Reporting Info'!N86","v":0}]
[null,6,{"$f":"'Reporting Info'!AB5","v":"(Grant Agreement #)"},{"$f":"'Reporting Info'!D87","v":0},{"$f":"'Reporting Info'!W87","v":"Not Answered"},{"$f":"'Reporting Info'!Z87","v":"Not Answered"},{"$f":"'Reporting Info'!AB87","v":"Not Answered"},{"$f":"'Reporting Info'!P87","v":0},{"$f":"'Reporting Info'!T87","v":"Not Answered"},{"$f":"'Reporting Info'!U87","v":0},{"$f":"'Reporting Info'!AC87","v":"Not Answered"},{"$f":"'Reporting Info'!C87","v":0},{"$f":"'Reporting Info'!H87","v":0},{"$f":"'Reporting Info'!I87","v":0},{"$f":"'Reporting Info'!L87","v":0},"/",{"$f":"'Reporting Info'!N87","v":0}]
[null,7,{"$f":"'Reporting Info'!AB5","v":"(Grant Agreement #)"},{"$f":"'Reporting Info'!D88","v":0},{"$f":"'Reporting Info'!W88","v":"Not Answered"},{"$f":"'Reporting Info'!Z88","v":"Not Answered"},{"$f":"'Reporting Info'!AB88","v":"Not Answered"},{"$f":"'Reporting Info'!P88","v":0},{"$f":"'Reporting Info'!T88","v":"Not Answered"},{"$f":"'Reporting Info'!U88","v":0},{"$f":"'Reporting Info'!AC88","v":"Not Answered"},{"$f":"'Reporting Info'!C88","v":0},{"$f":"'Reporting Info'!H88","v":0},{"$f":"'Reporting Info'!I88","v":0},{"$f":"'Reporting Info'!L88","v":0},"/",{"$f":"'Reporting Info'!N88","v":0}]
[null,8,{"$f":"'Reporting Info'!AB5","v":"(Grant Agreement #)"},{"$f":"'Reporting Info'!D89","v":0},{"$f":"'Reporting Info'!W89","v":"Not Answered"},{"$f":"'Reporting Info'!Z89","v":"Not Answered"},{"$f":"'Reporting Info'!AB89","v":"Not Answered"},{"$f":"'Reporting Info'!P89","v":0},{"$f":"'Reporting Info'!T89","v":"Not Answered"},{"$f":"'Reporting Info'!U89","v":0},{"$f":"'Reporting Info'!AC89","v":"Not Answered"},{"$f":"'Reporting Info'!C89","v":0},{"$f":"'Reporting Info'!H89","v":0},{"$f":"'Reporting Info'!I89","v":0},{"$f":"'Reporting Info'!L89","v":0},"/",{"$f":"'Reporting Info'!N89","v":0}]
[null,9,{"$f":"'Reporting Info'!AB5","v":"(Grant Agreement #)"},{"$f":"'Reporting Info'!D90","v":0},{"$f":"'Reporting Info'!W90","v":"Not Answered"},{"$f":"'Reporting Info'!Z90","v":"Not Answered"},{"$f":"'Reporting Info'!AB90","v":"Not Answered"},{"$f":"'Reporting Info'!P90","v":0},{"$f":"'Reporting Info'!T90","v":"Not Answered"},{"$f":"'Reporting Info'!U90","v":0},{"$f":"'Reporting Info'!AC90","v":"Not Answered"},{"$f":"'Reporting Info'!C90","v":0},{"$f":"'Reporting Info'!H90","v":0},{"$f":"'Reporting Info'!I90","v":0},{"$f":"'Reporting Info'!L90","v":0},"/",{"$f":"'Reporting Info'!N90","v":0}]
[null,10,{"$f":"'Reporting Info'!AB5","v":"(Grant Agreement #)"},{"$f":"'Reporting Info'!D91","v":0},{"$f":"'Reporting Info'!W91","v":"Not Answered"},{"$f":"'Reporting Info'!Z91","v":"Not Answered"},{"$f":"'Reporting Info'!AB91","v":"Not Answered"},{"$f":"'Reporting Info'!P91","v":0},{"$f":"'Reporting Info'!T91","v":"Not Answered"},{"$f":"'Reporting Info'!U91","v":0},{"$f":"'Reporting Info'!AC91","v":"Not Answered"},{"$f":"'Reporting Info'!C91","v":0},{"$f":"'Reporting Info'!H91","v":0},{"$f":"'Reporting Info'!I91","v":0},{"$f":"'Reporting Info'!L91","v":0},"/",{"$f":"'Reporting Info'!N91","v":0}]
[null,11,{"$f":"'Reporting Info'!AB5","v":"(Grant Agreement #)"},{"$f":"'Reporting Info'!D92","v":0},{"$f":"'Reporting Info'!W92","v":"Not Answered"},{"$f":"'Reporting Info'!Z92","v":"Not Answered"},{"$f":"'Reporting Info'!AB92","v":"Not Answered"},{"$f":"'Reporting Info'!P92","v":0},{"$f":"'Reporting Info'!T92","v":"Not Answered"},{"$f":"'Reporting Info'!U92","v":0},{"$f":"'Reporting Info'!AC92","v":"Not Answered"},{"$f":"'Reporting Info'!C92","v":0},{"$f":"'Reporting Info'!H92","v":0},{"$f":"'Reporting Info'!I92","v":0},{"$f":"'Reporting Info'!L92","v":0},"/",{"$f":"'Reporting Info'!N92","v":0}]
[null,12,{"$f":"'Reporting Info'!AB5","v":"(Grant Agreement #)"},{"$f":"'Reporting Info'!D93","v":0},{"$f":"'Reporting Info'!W93","v":"Not Answered"},{"$f":"'Reporting Info'!Z93","v":"Not Answered"},{"$f":"'Reporting Info'!AB93","v":"Not Answered"},{"$f":"'Reporting Info'!P93","v":0},{"$f":"'Reporting Info'!T93","v":"Not Answered"},{"$f":"'Reporting Info'!U93","v":0},{"$f":"'Reporting Info'!AC93","v":"Not Answered"},{"$f":"'Reporting Info'!C93","v":0},{"$f":"'Reporting Info'!H93","v":0},{"$f":"'Reporting Info'!I93","v":0},{"$f":"'Reporting Info'!L93","v":0},"/",{"$f":"'Reporting Info'!N93","v":0}]
[null,13,{"$f":"'Reporting Info'!AB5","v":"(Grant Agreement #)"},{"$f":"'Reporting Info'!D94","v":0},{"$f":"'Reporting Info'!W94","v":"Not Answered"},{"$f":"'Reporting Info'!Z94","v":"Not Answered"},{"$f":"'Reporting Info'!AB94","v":"Not Answered"},{"$f":"'Reporting Info'!P94","v":0},{"$f":"'Reporting Info'!T94","v":"Not Answered"},{"$f":"'Reporting Info'!U94","v":0},{"$f":"'Reporting Info'!AC94","v":"Not Answered"},{"$f":"'Reporting Info'!C94","v":0},{"$f":"'Reporting Info'!H94","v":0},{"$f":"'Reporting Info'!I94","v":0},{"$f":"'Reporting Info'!L94","v":0},"/",{"$f":"'Reporting Info'!N94","v":0}]
[null,14,{"$f":"'Reporting Info'!AB5","v":"(Grant Agreement #)"},{"$f":"'Reporting Info'!D95","v":0},{"$f":"'Reporting Info'!W95","v":"Not Answered"},{"$f":"'Reporting Info'!Z95","v":"Not Answered"},{"$f":"'Reporting Info'!AB95","v":"Not Answered"},{"$f":"'Reporting Info'!P95","v":0},{"$f":"'Reporting Info'!T95","v":"Not Answered"},{"$f":"'Reporting Info'!U95","v":0},{"$f":"'Reporting Info'!AC95","v":"Not Answered"},{"$f":"'Reporting Info'!C95","v":0},{"$f":"'Reporting Info'!H95","v":0},{"$f":"'Reporting Info'!I95","v":0},{"$f":"'Reporting Info'!L95","v":0},"/",{"$f":"'Reporting Info'!N95","v":0}]
[null,15,{"$f":"'Reporting Info'!AB5","v":"(Grant Agreement #)"},{"$f":"'Reporting Info'!D96","v":0},{"$f":"'Reporting Info'!W96","v":"Not Answered"},{"$f":"'Reporting Info'!Z96","v":"Not Answered"},{"$f":"'Reporting Info'!AB96","v":"Not Answered"},{"$f":"'Reporting Info'!P96","v":0},{"$f":"'Reporting Info'!T96","v":"Not Answered"},{"$f":"'Reporting Info'!U96","v":0},{"$f":"'Reporting Info'!AC96","v":"Not Answered"},{"$f":"'Reporting Info'!C96","v":0},{"$f":"'Reporting Info'!H96","v":0},{"$f":"'Reporting Info'!I96","v":0},{"$f":"'Reporting Info'!L96","v":0},"/",{"$f":"'Reporting Info'!N96","v":0}]
[null,16,{"$f":"'Reporting Info'!AB5","v":"(Grant Agreement #)"},{"$f":"'Reporting Info'!D97","v":0},{"$f":"'Reporting Info'!W97","v":"Not Answered"},{"$f":"'Reporting Info'!Z97","v":"Not Answered"},{"$f":"'Reporting Info'!AB97","v":"Not Answered"},{"$f":"'Reporting Info'!P97","v":0},{"$f":"'Reporting Info'!T97","v":"Not Answered"},{"$f":"'Reporting Info'!U97","v":0},{"$f":"'Reporting Info'!AC97","v":"Not Answered"},{"$f":"'Reporting Info'!C97","v":0},{"$f":"'Reporting Info'!H97","v":0},{"$f":"'Reporting Info'!I97","v":0},{"$f":"'Reporting Info'!L97","v":0},"/",{"$f":"'Reporting Info'!N97","v":0}]
[null,17,{"$f":"'Reporting Info'!AB5","v":"(Grant Agreement #)"},{"$f":"'Reporting Info'!D98","v":0},{"$f":"'Reporting Info'!W98","v":"Not Answered"},{"$f":"'Reporting Info'!Z98","v":"Not Answered"},{"$f":"'Reporting Info'!AB98","v":"Not Answered"},{"$f":"'Reporting Info'!P98","v":0},{"$f":"'Reporting Info'!T98","v":"Not Answered"},{"$f":"'Reporting Info'!U98","v":0},{"$f":"'Reporting Info'!AC98","v":"Not Answered"},{"$f":"'Reporting Info'!C98","v":0},{"$f":"'Reporting Info'!H98","v":0},{"$f":"'Reporting Info'!I98","v":0},{"$f":"'Reporting Info'!L98","v":0},"/",{"$f":"'Reporting Info'!N98","v":0}]
[null,18,{"$f":"'Reporting Info'!AB5","v":"(Grant Agreement #)"},{"$f":"'Reporting Info'!D99","v":0},{"$f":"'Reporting Info'!W99","v":"Not Answered"},{"$f":"'Reporting Info'!Z99","v":"Not Answered"},{"$f":"'Reporting Info'!AB99","v":"Not Answered"},{"$f":"'Reporting Info'!P99","v":0},{"$f":"'Reporting Info'!T99","v":"Not Answered"},{"$f":"'Reporting Info'!U99","v":0},{"$f":"'Reporting Info'!AC99","v":"Not Answered"},{"$f":"'Reporting Info'!C99","v":0},{"$f":"'Reporting Info'!H99","v":0},{"$f":"'Reporting Info'!I99","v":0},{"$f":"'Reporting Info'!L99","v":0},"/",{"$f":"'Reporting Info'!N99","v":0}]
[null,19,{"$f":"'Reporting Info'!AB5","v":"(Grant Agreement #)"},{"$f":"'Reporting Info'!D100","v":0},{"$f":"'Reporting Info'!W100","v":"Not Answered"},{"$f":"'Reporting Info'!Z100","v":"Not Answered"},{"$f":"'Reporting Info'!AB100","v":"Not Answered"},{"$f":"'Reporting Info'!P100","v":0},{"$f":"'Reporting Info'!T100","v":"Not Answered"},{"$f":"'Reporting Info'!U100","v":0},{"$f":"'Reporting Info'!AC100","v":"Not Answered"},{"$f":"'Reporting Info'!C100","v":0},{"$f":"'Reporting Info'!H100","v":0},{"$f":"'Reporting Info'!I100","v":0},{"$f":"'Reporting Info'!L100","v":0},"/",{"$f":"'Reporting Info'!N100","v":0}]
[null,20,{"$f":"'Reporting Info'!AB5","v":"(Grant Agreement #)"},{"$f":"'Reporting Info'!D101","v":0},{"$f":"'Reporting Info'!W101","v":"Not Answered"},{"$f":"'Reporting Info'!Z101","v":"Not Answered"},{"$f":"'Reporting Info'!AB101","v":"Not Answered"},{"$f":"'Reporting Info'!P101","v":0},{"$f":"'Reporting Info'!T101","v":"Not Answered"},{"$f":"'Reporting Info'!U101","v":0},{"$f":"'Reporting Info'!AC101","v":"Not Answered"},{"$f":"'Reporting Info'!C101","v":0},{"$f":"'Reporting Info'!H101","v":0},{"$f":"'Reporting Info'!I101","v":0},{"$f":"'Reporting Info'!L101","v":0},"/",{"$f":"'Reporting Info'!N101","v":0}]
[null,21,{"$f":"'Reporting Info'!AB5","v":"(Grant Agreement #)"},{"$f":"'Reporting Info'!D102","v":0},{"$f":"'Reporting Info'!W102","v":"Not Answered"},{"$f":"'Reporting Info'!Z102","v":"Not Answered"},{"$f":"'Reporting Info'!AB102","v":"Not Answered"},{"$f":"'Reporting Info'!P102","v":0},{"$f":"'Reporting Info'!T102","v":"Not Answered"},{"$f":"'Reporting Info'!U102","v":0},{"$f":"'Reporting Info'!AC102","v":"Not Answered"},{"$f":"'Reporting Info'!C102","v":0},{"$f":"'Reporting Info'!H102","v":0},{"$f":"'Reporting Info'!I102","v":0},{"$f":"'Reporting Info'!L102","v":0},"/",{"$f":"'Reporting Info'!N102","v":0}]
[null,22,{"$f":"'Reporting Info'!AB5","v":"(Grant Agreement #)"},{"$f":"'Reporting Info'!D103","v":0},{"$f":"'Reporting Info'!W103","v":"Not Answered"},{"$f":"'Reporting Info'!Z103","v":"Not Answered"},{"$f":"'Reporting Info'!AB103","v":"Not Answered"},{"$f":"'Reporting Info'!P103","v":0},{"$f":"'Reporting Info'!T103","v":"Not Answered"},{"$f":"'Reporting Info'!U103","v":0},{"$f":"'Reporting Info'!AC103","v":"Not Answered"},{"$f":"'Reporting Info'!C103","v":0},{"$f":"'Reporting Info'!H103","v":0},{"$f":"'Reporting Info'!I103","v":0},{"$f":"'Reporting Info'!L103","v":0},"/",{"$f":"'Reporting Info'!N103","v":0}]
[null,23,{"$f":"'Reporting Info'!AB5","v":"(Grant Agreement #)"},{"$f":"'Reporting Info'!D104","v":0},{"$f":"'Reporting Info'!W104","v":"Not Answered"},{"$f":"'Reporting Info'!Z104","v":"Not Answered"},{"$f":"'Reporting Info'!AB104","v":"Not Answered"},{"$f":"'Reporting Info'!P104","v":0},{"$f":"'Reporting Info'!T104","v":"Not Answered"},{"$f":"'Reporting Info'!U104","v":0},{"$f":"'Reporting Info'!AC104","v":"Not Answered"},{"$f":"'Reporting Info'!C104","v":0},{"$f":"'Reporting Info'!H104","v":0},{"$f":"'Reporting Info'!I104","v":0},{"$f":"'Reporting Info'!L104","v":0},"/",{"$f":"'Reporting Info'!N104","v":0}]
[null,24,{"$f":"'Reporting Info'!AB5","v":"(Grant Agreement #)"},{"$f":"'Reporting Info'!D105","v":0},{"$f":"'Reporting Info'!W105","v":"Not Answered"},{"$f":"'Reporting Info'!Z105","v":"Not Answered"},{"$f":"'Reporting Info'!AB105","v":"Not Answered"},{"$f":"'Reporting Info'!P105","v":0},{"$f":"'Reporting Info'!T105","v":"Not Answered"},{"$f":"'Reporting Info'!U105","v":0},{"$f":"'Reporting Info'!AC105","v":"Not Answered"},{"$f":"'Reporting Info'!C105","v":0},{"$f":"'Reporting Info'!H105","v":0},{"$f":"'Reporting Info'!I105","v":0},{"$f":"'Reporting Info'!L105","v":0},"/",{"$f":"'Reporting Info'!N105","v":0}]
[null,25,{"$f":"'Reporting Info'!AB5","v":"(Grant Agreement #)"},{"$f":"'Reporting Info'!D106","v":0},{"$f":"'Reporting Info'!W106","v":"Not Answered"},{"$f":"'Reporting Info'!Z106","v":"Not Answered"},{"$f":"'Reporting Info'!AB106","v":"Not Answered"},{"$f":"'Reporting Info'!P106","v":0},{"$f":"'Reporting Info'!T106","v":"Not Answered"},{"$f":"'Reporting Info'!U106","v":0},{"$f":"'Reporting Info'!AC106","v":"Not Answered"},{"$f":"'Reporting Info'!C106","v":0},{"$f":"'Reporting Info'!H106","v":0},{"$f":"'Reporting Info'!I106","v":0},{"$f":"'Reporting Info'!L106","v":0},"/",{"$f":"'Reporting Info'!N106","v":0}]
[null,26,{"$f":"'Reporting Info'!AB5","v":"(Grant Agreement #)"},{"$f":"'Reporting Info'!D107","v":0},{"$f":"'Reporting Info'!W107","v":"Not Answered"},{"$f":"'Reporting Info'!Z107","v":"Not Answered"},{"$f":"'Reporting Info'!AB107","v":"Not Answered"},{"$f":"'Reporting Info'!P107","v":0},{"$f":"'Reporting Info'!T107","v":"Not Answered"},{"$f":"'Reporting Info'!U107","v":0},{"$f":"'Reporting Info'!AC107","v":"Not Answered"},{"$f":"'Reporting Info'!C107","v":0},{"$f":"'Reporting Info'!H107","v":0},{"$f":"'Reporting Info'!I107","v":0},{"$f":"'Reporting Info'!L107","v":0},"/",{"$f":"'Reporting Info'!N107","v":0}]
[null,27,{"$f":"'Reporting Info'!AB5","v":"(Grant Agreement #)"},{"$f":"'Reporting Info'!D108","v":0},{"$f":"'Reporting Info'!W108","v":"Not Answered"},{"$f":"'Reporting Info'!Z108","v":"Not Answered"},{"$f":"'Reporting Info'!AB108","v":"Not Answered"},{"$f":"'Reporting Info'!P108","v":0},{"$f":"'Reporting Info'!T108","v":"Not Answered"},{"$f":"'Reporting Info'!U108","v":0},{"$f":"'Reporting Info'!AC108","v":"Not Answered"},{"$f":"'Reporting Info'!C108","v":0},{"$f":"'Reporting Info'!H108","v":0},{"$f":"'Reporting Info'!I108","v":0},{"$f":"'Reporting Info'!L108","v":0},"/",{"$f":"'Reporting Info'!N108","v":0}]
[null,28,{"$f":"'Reporting Info'!AB5","v":"(Grant Agreement #)"},{"$f":"'Reporting Info'!D109","v":0},{"$f":"'Reporting Info'!W109","v":"Not Answered"},{"$f":"'Reporting Info'!Z109","v":"Not Answered"},{"$f":"'Reporting Info'!AB109","v":"Not Answered"},{"$f":"'Reporting Info'!P109","v":0},{"$f":"'Reporting Info'!T109","v":"Not Answered"},{"$f":"'Reporting Info'!U109","v":0},{"$f":"'Reporting Info'!AC109","v":"Not Answered"},{"$f":"'Reporting Info'!C109","v":0},{"$f":"'Reporting Info'!H109","v":0},{"$f":"'Reporting Info'!I109","v":0},{"$f":"'Reporting Info'!L109","v":0},"/",{"$f":"'Reporting Info'!N109","v":0}]
[null,29,{"$f":"'Reporting Info'!AB5","v":"(Grant Agreement #)"},{"$f":"'Reporting Info'!D110","v":0},{"$f":"'Reporting Info'!W110","v":"Not Answered"},{"$f":"'Reporting Info'!Z110","v":"Not Answered"},{"$f":"'Reporting Info'!AB110","v":"Not Answered"},{"$f":"'Reporting Info'!P110","v":0},{"$f":"'Reporting Info'!T110","v":"Not Answered"},{"$f":"'Reporting Info'!U110","v":0},{"$f":"'Reporting Info'!AC110","v":"Not Answered"},{"$f":"'Reporting Info'!C110","v":0},{"$f":"'Reporting Info'!H110","v":0},{"$f":"'Reporting Info'!I110","v":0},{"$f":"'Reporting Info'!L110","v":0},"/",{"$f":"'Reporting Info'!N110","v":0}]
[null,30,{"$f":"'Reporting Info'!AB5","v":"(Grant Agreement #)"},{"$f":"'Reporting Info'!D111","v":0},{"$f":"'Reporting Info'!W111","v":"Not Answered"},{"$f":"'Reporting Info'!Z111","v":"Not Answered"},{"$f":"'Reporting Info'!AB111","v":"Not Answered"},{"$f":"'Reporting Info'!P111","v":0},{"$f":"'Reporting Info'!T111","v":"Not Answered"},{"$f":"'Reporting Info'!U111","v":0},{"$f":"'Reporting Info'!AC111","v":"Not Answered"},{"$f":"'Reporting Info'!C111","v":0},{"$f":"'Reporting Info'!H111","v":0},{"$f":"'Reporting Info'!I111","v":0},{"$f":"'Reporting Info'!L111","v":0},"/",{"$f":"'Reporting Info'!N111","v":0}]
[]
["Information  for  NON-CONSTRUCTION PRIME   Contractors",1,{"$f":"'Reporting Info'!AB5","v":"(Grant Agreement #)"},{"$f":"'Reporting Info'!H119","v":0},{"$f":"'Reporting Info'!X119","v":"Not Answered"},{"$f":"'Reporting Info'!AA119","v":"Not Answered"},{"$f":"'Reporting Info'!AC119","v":"Not Answered"},{"$f":"'Reporting Info'!U119","v":0},{"$f":"'Reporting Info'!AD119","v":"Not Answered"},"Not Applicable","Not Applicable",{"$f":"'Reporting Info'!C119","v":0},{"$f":"'Reporting Info'!I119","v":0},{"$f":"'Reporting Info'!O119","v":0},{"$f":"'Reporting Info'!R119","v":0},"/",{"$f":"'Reporting Info'!T119","v":0}]
[null,2,{"$f":"'Reporting Info'!AB5","v":"(Grant Agreement #)"},{"$f":"'Reporting Info'!H120","v":0},{"$f":"'Reporting Info'!X120","v":"Not Answered"},{"$f":"'Reporting Info'!AA120","v":"Not Answered"},{"$f":"'Reporting Info'!AC120","v":"Not Answered"},{"$f":"'Reporting Info'!U120","v":0},{"$f":"'Reporting Info'!AD120","v":"Not Answered"},"Not Applicable","Not Applicable",{"$f":"'Reporting Info'!C120","v":0},{"$f":"'Reporting Info'!I120","v":0},{"$f":"'Reporting Info'!O120","v":0},{"$f":"'Reporting Info'!R120","v":0},"/",{"$f":"'Reporting Info'!T120","v":0}]
[null,3,{"$f":"'Reporting Info'!AB5","v":"(Grant Agreement #)"},{"$f":"'Reporting Info'!H121","v":0},{"$f":"'Reporting Info'!X121","v":"Not Answered"},{"$f":"'Reporting Info'!AA121","v":"Not Answered"},{"$f":"'Reporting Info'!AC121","v":"Not Answered"},{"$f":"'Reporting Info'!U121","v":0},{"$f":"'Reporting Info'!AD121","v":"Not Answered"},"Not Applicable","Not Applicable",{"$f":"'Reporting Info'!C121","v":0},{"$f":"'Reporting Info'!I121","v":0},{"$f":"'Reporting Info'!O121","v":0},{"$f":"'Reporting Info'!R121","v":0},"/",{"$f":"'Reporting Info'!T121","v":0}]
[null,4,{"$f":"'Reporting Info'!AB5","v":"(Grant Agreement #)"},{"$f":"'Reporting Info'!H122","v":0},{"$f":"'Reporting Info'!X122","v":"Not Answered"},{"$f":"'Reporting Info'!AA122","v":"Not Answered"},{"$f":"'Reporting Info'!AC122","v":"Not Answered"},{"$f":"'Reporting Info'!U122","v":0},{"$f":"'Reporting Info'!AD122","v":"Not Answered"},"Not Applicable","Not Applicable",{"$f":"'Reporting Info'!C122","v":0},{"$f":"'Reporting Info'!I122","v":0},{"$f":"'Reporting Info'!O122","v":0},{"$f":"'Reporting Info'!R122","v":0},"/",{"$f":"'Reporting Info'!T122","v":0}]
[null,5,{"$f":"'Reporting Info'!AB5","v":"(Grant Agreement #)"},{"$f":"'Reporting Info'!H123","v":0},{"$f":"'Reporting Info'!X123","v":"Not Answered"},{"$f":"'Reporting Info'!AA123","v":"Not Answered"},{"$f":"'Reporting Info'!AC123","v":"Not Answered"},{"$f":"'Reporting Info'!U123","v":0},{"$f":"'Reporting Info'!AD123","v":"Not Answered"},"Not Applicable","Not Applicable",{"$f":"'Reporting Info'!C123","v":0},{"$f":"'Reporting Info'!I123","v":0},{"$f":"'Reporting Info'!O123","v":0},{"$f":"'Reporting Info'!R123","v":0},"/",{"$f":"'Reporting Info'!T123","v":0}]
[null,6,{"$f":"'Reporting Info'!AB5","v":"(Grant Agreement #)"},{"$f":"'Reporting Info'!H129","v":0},{"$f":"'Reporting Info'!X129","v":"Not Answered"},{"$f":"'Reporting Info'!AA129","v":"Not Answered"},{"$f":"'Reporting Info'!AC129","v":"Not Answered"},{"$f":"'Reporting Info'!U129","v":0},{"$f":"'Reporting Info'!AD129","v":"Not Answered"},"Not Applicable","Not Applicable",{"$f":"'Reporting Info'!C129","v":0},{"$f":"'Reporting Info'!I129","v":0},{"$f":"'Reporting Info'!O129","v":0},{"$f":"'Reporting Info'!R129","v":0},"/",{"$f":"'Reporting Info'!T129","v":0}]
[null,7,{"$f":"'Reporting Info'!AB5","v":"(Grant Agreement #)"},{"$f":"'Reporting Info'!H130","v":0},{"$f":"'Reporting Info'!X130","v":"Not Answered"},{"$f":"'Reporting Info'!AA130","v":"Not Answered"},{"$f":"'Reporting Info'!AC130","v":"Not Answered"},{"$f":"'Reporting Info'!U130","v":0},{"$f":"'Reporting Info'!AD130","v":"Not Answered"},"Not Applicable","Not Applicable",{"$f":"'Reporting Info'!C130","v":0},{"$f":"'Reporting Info'!I130","v":0},{"$f":"'Reporting Info'!O130","v":0},{"$f":"'Reporting Info'!R130","v":0},"/",{"$f":"'Reporting Info'!T130","v":0}]
[null,8,{"$f":"'Reporting Info'!AB5","v":"(Grant Agreement #)"},{"$f":"'Reporting Info'!H131","v":0},{"$f":"'Reporting Info'!X131","v":"Not Answered"},{"$f":"'Reporting Info'!AA131","v":"Not Answered"},{"$f":"'Reporting Info'!AC131","v":"Not Answered"},{"$f":"'Reporting Info'!U131","v":0},{"$f":"'Reporting Info'!AD131","v":"Not Answered"},"Not Applicable","Not Applicable",{"$f":"'Reporting Info'!C131","v":0},{"$f":"'Reporting Info'!I131","v":0},{"$f":"'Reporting Info'!O131","v":0},{"$f":"'Reporting Info'!R131","v":0},"/",{"$f":"'Reporting Info'!T131","v":0}]
[null,9,{"$f":"'Reporting Info'!AB5","v":"(Grant Agreement #)"},{"$f":"'Reporting Info'!H132","v":0},{"$f":"'Reporting Info'!X132","v":"Not Answered"},{"$f":"'Reporting Info'!AA132","v":"Not Answered"},{"$f":"'Reporting Info'!AC132","v":"Not Answered"},{"$f":"'Reporting Info'!U132","v":0},{"$f":"'Reporting Info'!AD132","v":"Not Answered"},"Not Applicable","Not Applicable",{"$f":"'Reporting Info'!C132","v":0},{"$f":"'Reporting Info'!I132","v":0},{"$f":"'Reporting Info'!O132","v":0},{"$f":"'Reporting Info'!R132","v":0},"/",{"$f":"'Reporting Info'!T132","v":0}]
[null,10,{"$f":"'Reporting Info'!AB5","v":"(Grant Agreement #)"},{"$f":"'Reporting Info'!H133","v":0},{"$f":"'Reporting Info'!X133","v":"Not Answered"},{"$f":"'Reporting Info'!AA133","v":"Not Answered"},{"$f":"'Reporting Info'!AC133","v":"Not Answered"},{"$f":"'Reporting Info'!U133","v":0},{"$f":"'Reporting Info'!AD133","v":"Not Answered"},"Not Applicable","Not Applicable",{"$f":"'Reporting Info'!C133","v":0},{"$f":"'Reporting Info'!I133","v":0},{"$f":"'Reporting Info'!O133","v":0},{"$f":"'Reporting Info'!R133","v":0},"/",{"$f":"'Reporting Info'!T133","v":0}]
[]
["Information for   NON-CONSTRUCTION SUBCONTRACTORS",1,{"$f":"'Reporting Info'!AB5","v":"(Grant Agreement #)"},{"$f":"'Reporting Info'!D140","v":0},{"$f":"'Reporting Info'!AA140","v":"Not Answered"},{"$f":"'Reporting Info'!AB140","v":"Not Answered"},{"$f":"'Reporting Info'!AC140","v":"Not Answered"},{"$f":"'Reporting Info'!R140","v":0},{"$f":"'Reporting Info'!U140","v":"Not Answered"},{"$f":"'Reporting Info'!V140","v":0},{"$f":"'Reporting Info'!AD140","v":"Not Answered"},{"$f":"'Reporting Info'!C140","v":0},{"$f":"'Reporting Info'!H140","v":0},{"$f":"'Reporting Info'!K140","v":0},{"$f":"'Reporting Info'!O140","v":0},"/",{"$f":"'Reporting Info'!Q140","v":0}]
[null,2,{"$f":"'Reporting Info'!AB5","v":"(Grant Agreement #)"},{"$f":"'Reporting Info'!D141","v":0},{"$f":"'Reporting Info'!AA141","v":"Not Answered"},{"$f":"'Reporting Info'!AB141","v":"Not Answered"},{"$f":"'Reporting Info'!AC141","v":"Not Answered"},{"$f":"'Reporting Info'!R141","v":0},{"$f":"'Reporting Info'!U141","v":"Not Answered"},{"$f":"'Reporting Info'!V141","v":0},{"$f":"'Reporting Info'!AD141","v":"Not Answered"},{"$f":"'Reporting Info'!C141","v":0},{"$f":"'Reporting Info'!H141","v":0},{"$f":"'Reporting Info'!K141","v":0},{"$f":"'Reporting Info'!O141","v":0},"/",{"$f":"'Reporting Info'!Q141","v":0}]
[null,3,{"$f":"'Reporting Info'!AB5","v":"(Grant Agreement #)"},{"$f":"'Reporting Info'!D142","v":0},{"$f":"'Reporting Info'!AA142","v":"Not Answered"},{"$f":"'Reporting Info'!AB142","v":"Not Answered"},{"$f":"'Reporting Info'!AC142","v":"Not Answered"},{"$f":"'Reporting Info'!R142","v":0},{"$f":"'Reporting Info'!U142","v":"Not Answered"},{"$f":"'Reporting Info'!V142","v":0},{"$f":"'Reporting Info'!AD142","v":"Not Answered"},{"$f":"'Reporting Info'!C142","v":0},{"$f":"'Reporting Info'!H142","v":0},{"$f":"'Reporting Info'!K142","v":0},{"$f":"'Reporting Info'!O142","v":0},"/",{"$f":"'Reporting Info'!Q142","v":0}]
[null,4,{"$f":"'Reporting Info'!AB5","v":"(Grant Agreement #)"},{"$f":"'Reporting Info'!D143","v":0},{"$f":"'Reporting Info'!AA143","v":"Not Answered"},{"$f":"'Reporting Info'!AB143","v":"Not Answered"},{"$f":"'Reporting Info'!AC143","v":"Not Answered"},{"$f":"'Reporting Info'!R143","v":0},{"$f":"'Reporting Info'!U143","v":"Not Answered"},{"$f":"'Reporting Info'!V143","v":0},{"$f":"'Reporting Info'!AD143","v":"Not Answered"},{"$f":"'Reporting Info'!C143","v":0},{"$f":"'Reporting Info'!H143","v":0},{"$f":"'Reporting Info'!K143","v":0},{"$f":"'Reporting Info'!O143","v":0},"/",{"$f":"'Reporting Info'!Q143","v":0}]
[null,5,{"$f":"'Reporting Info'!AB5","v":"(Grant Agreement #)"},{"$f":"'Reporting Info'!D144","v":0},{"$f":"'Reporting Info'!AA144","v":"Not Answered"},{"$f":"'Reporting Info'!AB144","v":"Not Answered"},{"$f":"'Reporting Info'!AC144","v":"Not Answered"},{"$f":"'Reporting Info'!R144","v":0},{"$f":"'Reporting Info'!U144","v":"Not Answered"},{"$f":"'Reporting Info'!V144","v":0},{"$f":"'Reporting Info'!AD144","v":"Not Answered"},{"$f":"'Reporting Info'!C144","v":0},{"$f":"'Reporting Info'!H144","v":0},{"$f":"'Reporting Info'!K144","v":0},{"$f":"'Reporting Info'!O144","v":0},"/",{"$f":"'Reporting Info'!Q144","v":0}]
[null,6,{"$f":"'Reporting Info'!AB5","v":"(Grant Agreement #)"},{"$f":"'Reporting Info'!D150","v":0},{"$f":"'Reporting Info'!AA150","v":"Not Answered"},{"$f":"'Reporting Info'!AB150","v":"Not Answered"},{"$f":"'Reporting Info'!AC150","v":"Not Answered"},{"$f":"'Reporting Info'!R150","v":0},{"$f":"'Reporting Info'!U150","v":"Not Answered"},{"$f":"'Reporting Info'!V150","v":0},{"$f":"'Reporting Info'!AD150","v":"Not Answered"},{"$f":"'Reporting Info'!C150","v":0},{"$f":"'Reporting Info'!H150","v":0},{"$f":"'Reporting Info'!K150","v":0},{"$f":"'Reporting Info'!O150","v":0},"/",{"$f":"'Reporting Info'!Q150","v":0}]
[null,7,{"$f":"'Reporting Info'!AB5","v":"(Grant Agreement #)"},{"$f":"'Reporting Info'!D151","v":0},{"$f":"'Reporting Info'!AA151","v":"Not Answered"},{"$f":"'Reporting Info'!AB151","v":"Not Answered"},{"$f":"'Reporting Info'!AC151","v":"Not Answered"},{"$f":"'Reporting Info'!R151","v":0},{"$f":"'Reporting Info'!U151","v":"Not Answered"},{"$f":"'Reporting Info'!V151","v":0},{"$f":"'Reporting Info'!AD151","v":"Not Answered"},{"$f":"'Reporting Info'!C151","v":0},{"$f":"'Reporting Info'!H151","v":0},{"$f":"'Reporting Info'!K151","v":0},{"$f":"'Reporting Info'!O151","v":0},"/",{"$f":"'Reporting Info'!Q151","v":0}]
[null,8,{"$f":"'Reporting Info'!AB5","v":"(Grant Agreement #)"},{"$f":"'Reporting Info'!D152","v":0},{"$f":"'Reporting Info'!AA152","v":"Not Answered"},{"$f":"'Reporting Info'!AB152","v":"Not Answered"},{"$f":"'Reporting Info'!AC152","v":"Not Answered"},{"$f":"'Reporting Info'!R152","v":0},{"$f":"'Reporting Info'!U152","v":"Not Answered"},{"$f":"'Reporting Info'!V152","v":0},{"$f":"'Reporting Info'!AD152","v":"Not Answered"},{"$f":"'Reporting Info'!C152","v":0},{"$f":"'Reporting Info'!H152","v":0},{"$f":"'Reporting Info'!K152","v":0},{"$f":"'Reporting Info'!O152","v":0},"/",{"$f":"'Reporting Info'!Q152","v":0}]
[null,9,{"$f":"'Reporting Info'!AB5","v":"(Grant Agreement #)"},{"$f":"'Reporting Info'!D153","v":0},{"$f":"'Reporting Info'!AA153","v":"Not Answered"},{"$f":"'Reporting Info'!AB153","v":"Not Answered"},{"$f":"'Reporting Info'!AC153","v":"Not Answered"},{"$f":"'Reporting Info'!R153","v":0},{"$f":"'Reporting Info'!U153","v":"Not Answered"},{"$f":"'Reporting Info'!V153","v":0},{"$f":"'Reporting Info'!AD153","v":"Not Answered"},{"$f":"'Reporting Info'!C153","v":0},{"$f":"'Reporting Info'!H153","v":0},{"$f":"'Reporting Info'!K153","v":0},{"$f":"'Reporting Info'!O153","v":0},"/",{"$f":"'Reporting Info'!Q153","v":0}]
[null,10,{"$f":"'Reporting Info'!AB5","v":"(Grant Agreement #)"},{"$f":"'Reporting Info'!D154","v":0},{"$f":"'Reporting Info'!AA154","v":"Not Answered"},{"$f":"'Reporting Info'!AB154","v":"Not Answered"},{"$f":"'Reporting Info'!AC154","v":"Not Answered"},{"$f":"'Reporting Info'!R154","v":0},{"$f":"'Reporting Info'!U154","v":"Not Answered"},{"$f":"'Reporting Info'!V154","v":0},{"$f":"'Reporting Info'!AD154","v":"Not Answered"},{"$f":"'Reporting Info'!C154","v":0},{"$f":"'Reporting Info'!H154","v":0},{"$f":"'Reporting Info'!K154","v":0},{"$f":"'Reporting Info'!O154","v":0},"/",{"$f":"'Reporting Info'!Q154","v":0}]